Workbook

Sheet Error
A3: The Pump System Calculator requires macros to function. Please choose Enable Macros when opening the workbook. If this option is not available, then please see your IT administrator to ensure you have the appropriate privileges to enable macros. The navigation ribbon above relies upon the macros to function, and so will be non-responsive. Please close the workbook using the close button within the title bar in the top right corner, or use the File menu (which does not depend on macros) to select Close. You can then re-open the workbook, this time choosing to enable macros. This sheet will also appear while the Calculator is loading. Please wait a few seconds to allow it to initialise.

Sheet All Systems (hidden)
B2: Calculator
B4: Project Information | N4: Colour Guide
B5: Building Name and Description | E5: Project Number | F5: Designer | I5: Company | N5: Input | O5: Calculated | P5: N/A | Q5: Satisfactory | R5: Not Satisfactory
N6: Gold | O6: White | P6: Grey | Q6: Green | R6: Red
E8: Formula reference | F8: VBA reference | G8: Row number
C9: Active System | D9: 1 | E9: =CONCATENATE("'",F9,"'") -> 'Pipe Details (104)' | F9: Pipe Details (104) | G9: =14+Active_System_Number -> 15 | I9: Next ID Number | J9: 105
B10: Systems
B11: Controls | C11: ID | D11: System Description | E11: Pump Tag | F11: Configuration | H11: Straight Pipe PD (Pa/m) | K11: Energy Efficiency Index | N11: Minimum Efficiency Index | Q11: Summary | S11: =Summary!B9 -> Pipe System Type | T11: =Summary!C9 -> System Speed Control | U11: =Summary!D9 -> Operating Hours Per Annum | V11: =Summary!B15 -> Pump Configuration | W11: =Summary!C15 -> Pump Design | X11: =Summary!D15 -> Pump Stages | Y11: =Summary!E15 -> Pump Speed | Z11: ='Pump Details'!B13 -> Energy Efficiency Index | AA11: ='Pump Details'!C13 -> Hydraulic Power Output | AB11: ='Pump Details'!B19 -> Method | AC11: ='Pump Details'!B25 -> Minimum Efficiency Index | AD11: ='Pump Details'!B29 -> Water Flow Rate | AE11: Water Flow Units | AF11: ='Pump Details'!C29 -> System Head | AG11: System Head Units | AH11: ='Pump Details'!D29 -> Number of series impellers | AI11: ='Pump Details'!E29 -> Efficiency at Best Efficiency Point | AJ11: Duct Worksheet name (VBA) | AK11: Duct worksheet name (Excel) | AL11: Active & Compliant | AM11: Summary | AN11: Component Requirements | AQ11: System Requirements | AU11: Pipe Method
H12: System | I12: Allowable | K12: System | L12: Allowable | N12: System | O12: Allowable | AN12: =Summary!B22 -> Pipe | AO12: =Summary!C22 -> Pump | AP12: =Summary!D22 -> Overall | AQ12: =Summary!C26 -> Pump | AR12: =Summary!B26 -> Pipe | AS12: =Summary!D26 -> Motor Power | AT12: =Summary!E26 -> Overall
C13: 2 | F13: Incomplete | H13: TBC | I13: TBC | Q13: Insufficient Data | S13: -Select- | T13: -Select- | U13: -Select- | V13: -Select- | W13: -Select- | X13: -Select- | Y13: -Select- | AB13: None | AE13: L/s | AG13: kPa | AJ13: Pipe Details (Template) | AK13: =CONCATENATE("'",AJ13,"'") -> 'Pipe Details (Template)' | AL13: =CONCATENATE(IF(C13=Active_System_Number,1,0),Q13) -> 0Insufficient Data | AM13: More data is required to evaluate the system on either component or systemic levels. More data is required before the pump can be evaluated. More data is required before the pipework can be evaluated. Ensure that you select a pipe system type using the drop down menu. Ensure that you select the system's speed control using the drop down menu. Ensure that you enter the number of hours per annum that the system operates. Ensure that you select the pump configuration using the drop down menu. Ensure that you select the pump design using the drop down menu. Ensure that you select whether the pump is single or multistage. Ensure that you select the pump's speed from the drop down menu. | AN13: Insufficient Data | AO13: Insufficient Data | AP13: Insufficient Data | AQ13: Insufficient Data | AR13: Insufficient Data | AS13: Insufficient Data | AT13: Insufficient Data
C14: 1 | F14: Incomplete | H14: TBC | I14: TBC | L14: <0.27 | Q14: Insufficient Data | S14: Non-distributive | T14: Constant Speed | U14: 2000 or Less | V14: Circulator | W14: End Suction Close Coupled | X14: -Select- | Y14: -Select- | AB14: None | AE14: L/s | AG14: kPa | AJ14: Pipe Details (84) | AK14: 'Pipe Details (84)' | AL14: 1Insufficient Data | AM14: More data is required to evaluate the system on either component or systemic levels. More data is required before the pump can be evaluated. More data is required before the pipework can be evaluated. Ensure that you select whether the pump is single or multistage. Ensure that you select the pump's speed from the drop down menu. | AN14: Insufficient Data | AO14: Insufficient Data | AP14: Insufficient Data | AQ14: Insufficient Data | AR14: Insufficient Data | AS14: Insufficient Data | AT14: Insufficient Data
C15: 1 | F15: Incomplete | H15: TBC | I15: TBC | Q15: Insufficient Data | S15: -Select- | T15: -Select- | U15: -Select- | V15: -Select- | W15: -Select- | X15: -Select- | Y15: -Select- | AB15: None | AE15: L/s | AG15: kPa | AJ15: Pipe Details (104) | AK15: =CONCATENATE("'",AJ15,"'") -> 'Pipe Details (104)' | AL15: =CONCATENATE(IF(C15=Active_System_Number,1,0),Q15) -> 1Insufficient Data | AM15: More data is required to evaluate the system on either component or systemic levels. More data is required before the pump can be evaluated. More data is required before the pipework can be evaluated. Ensure that you select a pipe system type using the drop down menu. Ensure that you select the system's speed control using the drop down menu. Ensure that you enter the number of hours per annum that the system operates. Ensure that you select the pump configuration using the drop down menu. Ensure that you select the pump design using the drop down menu. Ensure that you select whether the pump is single or multistage. Ensure that you select the pump's speed from the drop down menu. | AN15: Insufficient Data | AO15: Insufficient Data | AP15: Insufficient Data | AQ15: Insufficient Data | AR15: Insufficient Data | AS15: Insufficient Data | AT15: Insufficient Data | AU15: Z
B16: Complete | E16: Complete | G16: TBC | H16: TBC | N16: TBC | P16: Not Applicable | S16: Axial - other | T16: Ducted | U16: Ducted | V16: No | W16: Smoke spill only | AM16: The system is of a type covered by J5.4(e), and thus it is not required to comply with the other elements of J5.4. Component results are displayed below only to aid in the design process. More data is required before the length of flexible duct can be evaluated. More data is required before the index run's straight duct can be evaluated. More data is required before the duct fittings in the index run can be evaluated. More data is required before the index run can be evaluated. More data is required before the fan's efficiency can be evaluated. | AN16: Insufficient Information | AO16: Insufficient Information | AP16: Not Applicable | AQ16: Insufficient Information | AR16: Insufficient Information | AS16: Insufficient Information | AT16: Not Applicable
B18: Notice for new users:
B19: The Pump System Calculator uses a custom ribbon for navigation. Worksheet tabs are not supported. For more guidance on this tool, please click the Help button on the ribbon above.
B20: Notice for all users:
B21: The Pump System Calculator is not a compliance tool, nor a Verification Method. It is provided solely to aid practitioners in developing their understanding of the NCC. The accuracy of the Calculator's output is based entirely on the accuracy of the data entered by the user.
B23: IMPORTANT NOTICE AND DISCLAIMER IN RESPECT OF THIS PUMP SYSTEM CALCULATOR

Sheet Summary (hidden)
F2: Calculator
B4: System General Information
B5: Building Name and Description | D5: Pump Tag | E5: System Description
B6: =IF('All Systems'!B6="","",'All Systems'!B6) ->  | D6: =IF(INDIRECT("'All Systems'!E" & Active_System_RowNo)="","",INDIRECT("'All Systems'!E" & Active_System_RowNo)) ->  | E6: =IF(INDIRECT("'All Systems'!D" & Active_System_RowNo)="","",INDIRECT("'All Systems'!D" & Active_System_RowNo)) -> 
B8: System Characteristics
B9: Pipe System Type | C9: System Speed Control | D9: Operating Hours Per Annum
B10: -Select- | C10: -Select- | D10: -Select-
B11: =VLOOKUP(B12,'Lookup Values'!B32:C34,2,FALSE) -> Please select a non-distributive system to comply with J5.7(d)(i) or a distributive system to comply with J5.7(d)(ii).
B12: =IFERROR(VLOOKUP(B10,'Lookup Values'!A32:C35,2,FALSE),"Z") -> Z | C12: =IFERROR(VLOOKUP(C10,'Lookup Values'!A38:B41,2,FALSE),"Z") -> Z | D12: =IFERROR(VLOOKUP(D10,'Pipe System Lookup Values'!A62:B66,2,FALSE),"Z") -> Z | E12: =IFERROR(VLOOKUP(D12,'Pipe System Lookup Values'!B62:C65,2,FALSE),5) -> 5
B14: Pump Characteristics
B15: Pump Configuration | C15: Pump Design | D15: Pump Stages | E15: Pump Speed
B16: -Select- | C16: -Select- | D16: -Select- | E16: -Select-
B17: =VLOOKUP(B20,'Lookup Values'!B3:C5,2,FALSE) -> Please select a circulator to comply with J5.7(b) or another pump to comply with J5.7(c). | C17: =VLOOKUP(C20,'Lookup Values'!B9:C15,2,FALSE) -> Please select your pump type using the drop-down menu. This cell will provide a description of the pump selected. | D17: =VLOOKUP(D20,'Lookup Values'!B60:C62,2,FALSE) -> Select the pump's speed using the drop-down menu. | E17: =VLOOKUP(E20,'Lookup Values'!B18:D21,3,FALSE) -> Please select your pump's speed.
B19: Table Reference for J5.7a-d | C19: =CONCATENATE(B12,C12) -> ZZ | D19: Config Complete | E19: =IF(COUNTIF(B12:D12,"Z")+COUNTIF(B20:E20,"Z")>0,"Incomplete","Complete") -> Incomplete
B20: =IFERROR(VLOOKUP(B16,'Lookup Values'!A3:C6,2,FALSE),"Z") -> Z | C20: =IFERROR(VLOOKUP(C16,'Lookup Values'!A9:C16,2,FALSE),"Z") -> Z | D20: =IFERROR(VLOOKUP(D16,'Lookup Values'!A60:C63,2,FALSE),"Z") -> Z | E20: =IFERROR(VLOOKUP(E16,'Lookup Values'!A18:D22,2,FALSE),"Z") -> Z
B21: Component Level Satisfaction
B22: Pipe | C22: Pump | D22: Overall
B23: =INDIRECT(PipeSheetFormulaName & "!Pipe_Component_Compliance") -> Insufficient Data | C23: ='Pump Details'!B49 -> Insufficient Data | D23: =IF(COUNTIF(B23:C23,"Clause J5.7 Not Satisfied")>0,"Clause J5.7 Not Satisfied",IF(COUNTIF(B23:C23,"Inapplicable")>0,"Inapplicable",IF(COUNTIF(B23:C23,"Insufficient Data")>0,"Insufficient Data","Satisfies Clause J5.7"))) -> Insufficient Data
B25: System Level Satisfaction
B26: Pipe | C26: Pump | D26: Motor Power | E26: Overall
B27: =IFERROR(IF(COUNTIF(INDIRECT(PipeSheetFormulaName & "!Pipe_Average_PD"),"Insufficient Data")+COUNTIF(INDIRECT(PipeSheetFormulaName & "!Pipe_Maximum_PD"),"Insufficient Data")>0,"Insufficient Data",INDIRECT(PipeSheetFormulaName & "!Pipe_Average_PD")/INDIRECT(PipeSheetFormulaName & "!Pipe_Maximum_PD")-1),"Insufficient Data") -> Insufficient Data | C27: =IFERROR(IF(B20="A",IF(Component_Pump="Inapplicable","Inapplicable",IF(Entered_EEI="","Insufficient Data",Entered_EEI/0.27-1)),IF(B20="B",IF(OR(C20="F",E20="C"),"Inapplicable",IF(Pump_Method_Tag="A","Unavailable",IF(Pump_Method_Tag="B",'Pump Details'!B44/Alternate_MEI_Efficiency-1,"Insufficient Data"))),"Insufficient Data")),"Insufficient Data") -> Insufficient Data | D27: =IFERROR(IF(COUNTBLANK(B27:C27)+COUNTIF(B27:C27,"Insufficient Data")>0,"Insufficient Data",IF(COUNTIF(B27:C27,"Inapplicable"),"Inapplicable",(C27+1)*(B27+1)-1)),"Insufficient Data") -> Insufficient Data | E27: =IFERROR(IF(C27="Inapplicable","Inapplicable",IF(COUNTBLANK(B27:D27)+COUNTIF(B27:D27,"Insufficient Data")>0,"Insufficient Data",IF(D27<0,"Satisfies Clause J5.7","Clause J5.7 Not Satisfied"))),"Insufficient Data") -> Insufficient Data
B29: Result
B30: More data is required to evaluate the system on either component or systemic levels. More data is required before the pump can be evaluated. More data is required before the pipework can be evaluated. Ensure that you select a pipe system type using the drop down menu. Ensure that you select the system's speed control using the drop down menu. Ensure that you enter the number of hours per annum that the system operates. Ensure that you select the pump configuration using the drop down menu. Ensure that you select the pump design using the drop down menu. Ensure that you select whether the pump is single or multistage. Ensure that you select the pump's speed from the drop down menu.
D31: Compliant total
D32: =IF(OR(D23="Inapplicable",E27="Inapplicable"),"Inapplicable",IF(OR(D23="Satisfies Clause J5.7",E27="Satisfies Clause J5.7"),"Satisfies Clause J5.7",IF(OR(D23="Clause J5.7 Not Satisfied",E27="Clause J5.7 Not Satisfied"),"Clause J5.7 Not Satisfied","Insufficient Data"))) -> Insufficient Data
E34: Version number: 1.0
B35: IMPORTANT NOTICE AND DISCLAIMER IN RESPECT OF THIS PUMP SYSTEM CALCULATOR

Sheet Report Template (hidden)
A4: Project Information
A5: ='All Systems'!B5 -> Building Name and Description | C5: ='All Systems'!E5 -> Project Number | D5: ='All Systems'!F5 -> Designer | E5: ='All Systems'!I5 -> Company
A6: =IF('All Systems'!B6="","",'All Systems'!B6) ->  | C6: =IF('All Systems'!E6="","",'All Systems'!E6) ->  | D6: =IF('All Systems'!F6="","",'All Systems'!F6) ->  | E6: =IF('All Systems'!I6="","",'All Systems'!I6) -> 
A8: System Information
A9: Pump Tag:
A10: Description:
A11: System Type:
A12: Speed Control:
A13: Operating Hours Per Annum:
A14: Pump Configuration:
A15: Pump Design:
A16: Pump Stages:
A17: Pump Speed:
A19: Calculation Summary
A20: Component | B20: System | C20: Allowable
A21: Straight Pressure Drop
A23: Minimum Efficiency Index
A26: Component Level Satisfaction
A27: Pipe | B27: Pump | C27: Overall
A30: System Level Satisfaction
A31: Pipe | B31: Pump | C31: Motor Power | D31: Overall
A34: Result
A37: IMPORTANT NOTICE AND DISCLAIMER IN RESPECT OF THIS PUMP SYSTEM CALCULATOR

Sheet Report (hidden)
A4: Project Information
A5: Building Name and Description | C5: Project Number | D5: Designer | E5: Company
A8: System Information
A9: Pump Tag:
A10: Description:
A11: System Type: | B11: -Select-
A12: Speed Control: | B12: -Select-
A13: Operating Hours Per Annum: | B13: -Select-
A14: Pump Configuration: | B14: -Select-
A15: Pump Design: | B15: -Select-
A16: Pump Stages: | B16: -Select-
A17: Pump Speed: | B17: -Select-
A19: Calculation Summary
A20: Component | B20: System | C20: Allowable
A21: Straight Pressure Drop | B21: TBC | C21: TBC
A23: Minimum Efficiency Index | B23: 0 | C23: TBC
A26: Component Level Satisfaction
A27: Pipe | B27: Pump | C27: Overall
A28: Insufficient Data | B28: Insufficient Data | C28: Insufficient Data
A30: System Level Satisfaction
A31: Pipe | B31: Pump | C31: Motor Power | D31: Overall
A32: Insufficient Data | B32: Insufficient Data | C32: Insufficient Data | D32: Insufficient Data
A34: Result
A35: More data is required to evaluate the system on either component or systemic levels. More data is required before the pump can be evaluated. More data is required before the pipework can be evaluated. Ensure that you select a pipe system type using the drop down menu. Ensure that you select the system's speed control using the drop down menu. Ensure that you enter the number of hours per annum that the system operates. Ensure that you select the pump configuration using the drop down menu. Ensure that you select the pump design using the drop down menu. Ensure that you select whether the pump is single or multistage. Ensure that you select the pump's speed from the drop down menu.
A36: Version number: 1.0
A37: IMPORTANT NOTICE AND DISCLAIMER IN RESPECT OF THIS PUMP SYSTEM CALCULATOR

Sheet Pipe Details (104) (hidden)
Y2: Calculator
T3: =S3+1 -> 1 | U3: 2 | V3: 3 | W3: 4 | X3: 5
B4: System General Information
B5: Building Name and Description | E5: Pump Tag | G5: System Description
B6: =IF(Summary!B6="","",Summary!B6) ->  | E6: =IF(Summary!D6="","",Summary!D6) ->  | G6: =IF(Summary!E6="","",Summary!E6) -> 
B8: System Characteristics
B9: =Summary!B9 -> Pipe System Type | D9: =Summary!C9 -> System Speed Control | E9: =Summary!D9 -> Operating Hours Per Annum
B10: =IF(Summary!B10="","",Summary!B10) -> -Select- | D10: =IF(Summary!C10="","",Summary!C10) -> -Select- | E10: =IF(Summary!D10="","",Summary!D10) -> -Select-
B12: Method | C12: None | D12: =VLOOKUP(C12,'Lookup Values'!A66:B69,2,FALSE) -> Z
B14: The Simple Method requires the average pressure drop to be pre-calculated. The maximum pressure drop allowed may be lower than that of a fully described system. | F14: The Complex Method allows for the piping to be entered and both the average pressure drop and maximum pressure drop to be calculated taking into account variations in pipe size throughout the system.
B16: Piping Details | L16: Calculation Behind Simple Method
B17: Diameter Present | L17: Diameter reference | M17: Max PD | N17: Present | T17: Max PD or "N/A"
L18: 0 | M18: =IF(OR((ISNUMBER(FIND(Configuration_Plus_Design,"Z"))),Summary!$D$12="Z"),0,VLOOKUP(L18,INDIRECT("Table"&Summary!$C$19),HLOOKUP(Summary!$D$12,INDIRECT("Mini"&Summary!$C$19),2,FALSE),TRUE)) -> 0 | N18: TRUE | T18: =IF(N18,M18,"N/A") -> 0
L19: 25 | M19: =IF(OR((ISNUMBER(FIND(Configuration_Plus_Design,"Z"))),Summary!$D$12="Z"),0,VLOOKUP(L19,INDIRECT("Table"&Summary!$C$19),HLOOKUP(Summary!$D$12,INDIRECT("Mini"&Summary!$C$19),2,FALSE),TRUE)) -> 0 | N19: TRUE | T19: 0
L20: 32 | M20: =IF(OR((ISNUMBER(FIND(Configuration_Plus_Design,"Z"))),Summary!$D$12="Z"),0,VLOOKUP(L20,INDIRECT("Table"&Summary!$C$19),HLOOKUP(Summary!$D$12,INDIRECT("Mini"&Summary!$C$19),2,FALSE),TRUE)) -> 0 | N20: TRUE | T20: 0
L21: 40 | M21: =IF(OR((ISNUMBER(FIND(Configuration_Plus_Design,"Z"))),Summary!$D$12="Z"),0,VLOOKUP(L21,INDIRECT("Table"&Summary!$C$19),HLOOKUP(Summary!$D$12,INDIRECT("Mini"&Summary!$C$19),2,FALSE),TRUE)) -> 0 | N21: TRUE | T21: 0
L22: 50 | M22: =IF(OR((ISNUMBER(FIND(Configuration_Plus_Design,"Z"))),Summary!$D$12="Z"),0,VLOOKUP(L22,INDIRECT("Table"&Summary!$C$19),HLOOKUP(Summary!$D$12,INDIRECT("Mini"&Summary!$C$19),2,FALSE),TRUE)) -> 0 | N22: TRUE | T22: 0
L23: 65 | M23: =IF(OR((ISNUMBER(FIND(Configuration_Plus_Design,"Z"))),Summary!$D$12="Z"),0,VLOOKUP(L23,INDIRECT("Table"&Summary!$C$19),HLOOKUP(Summary!$D$12,INDIRECT("Mini"&Summary!$C$19),2,FALSE),TRUE)) -> 0 | N23: TRUE | T23: 0
L24: 80 | M24: =IF(OR((ISNUMBER(FIND(Configuration_Plus_Design,"Z"))),Summary!$D$12="Z"),0,VLOOKUP(L24,INDIRECT("Table"&Summary!$C$19),HLOOKUP(Summary!$D$12,INDIRECT("Mini"&Summary!$C$19),2,FALSE),TRUE)) -> 0 | N24: TRUE | T24: 0
E25: System Information | L25: 100 | M25: =IF(OR((ISNUMBER(FIND(Configuration_Plus_Design,"Z"))),Summary!$D$12="Z"),0,VLOOKUP(L25,INDIRECT("Table"&Summary!$C$19),HLOOKUP(Summary!$D$12,INDIRECT("Mini"&Summary!$C$19),2,FALSE),TRUE)) -> 0 | N25: TRUE | T25: 0
E26: Average Pressure Drop Pa/m | L26: 125 | M26: =IF(OR((ISNUMBER(FIND(Configuration_Plus_Design,"Z"))),Summary!$D$12="Z"),0,VLOOKUP(L26,INDIRECT("Table"&Summary!$C$19),HLOOKUP(Summary!$D$12,INDIRECT("Mini"&Summary!$C$19),2,FALSE),TRUE)) -> 0 | N26: TRUE | T26: 0
L27: 150 | M27: =IF(OR((ISNUMBER(FIND(Configuration_Plus_Design,"Z"))),Summary!$D$12="Z"),0,VLOOKUP(L27,INDIRECT("Table"&Summary!$C$19),HLOOKUP(Summary!$D$12,INDIRECT("Mini"&Summary!$C$19),2,FALSE),TRUE)) -> 0 | N27: TRUE | T27: 0
B28: This row has sums in it | N28: =COUNTIF(N18:N27,TRUE) -> 10 | T28: =IF(N28=0,"TBC",MIN(T18:T27)) -> 0
B30: Piping Details
B31: ID | C31: Description | D31: Material | E31: Temperature | F31: Flow Rate | G31: Diameter | H31: Length | I31: Roughness | J31: Internal Diameter | K31: Flow Rate For Iterative Solving | L31: Fluid Density | M31: Dynamic Viscosity | N31: Velocity | O31: Velocity Check | P31: Pressure Drop | Q31: Maximum PD | R31: Compliant | S31: Total PD | T31: Total Maximum PD
E32: °C | F32: L/s | G32: mm | H32: m | I32: mm | J32: m | K32: L/s | L32: kg/m³ | M32: mPas | N32: m/s | P32: Pa/m | Q32: Pa/m | S32: kPa | T32: kPa
B33: Controls | C33: =IF(ISBLANK(B32),B31,B31 & CHAR(10) & B32) -> ID | D33: Description | E33: Material | F33: Temperature °C | G33: Flow Rate L/s | H33: Diameter mm | I33: Length m | J33: Roughness mm | K33: Internal Diameter m | L33: Flow Rate For Iterative Solving L/s | M33: Fluid Density kg/m³ | N33: Dynamic Viscosity mPas | O33: Velocity m/s | P33: Velocity Check | Q33: Pressure Drop Pa/m | R33: Maximum PD Pa/m | S33: Compliant | T33: Total PD kPa | U33: Total Maximum PD kPa | V33: Reynolds Number | W33: Velocity Check Conditions | X33: Ready For DP Calc
C34: Template Row (Hidden) | E34: Copper Type B to AS1432 | H34: 20 | K34: =IFERROR((IF(E34="Custom",IF(ISBLANK(H34),"",H34/1000),INDEX('Pipe System Lookup Values'!$C$4:$G$20,MATCH('Pipe Details (104)'!H34,'Pipe System Lookup Values'!$B$4:$B$20,0),MATCH(E34,'Pipe System Lookup Values'!$C$3:$H$3,0))/1000)),"") -> 0.01693 | L34: =IFERROR(-1000*PI()*(Q34*K34^5/(2*M34))^0.5*LOG(((J34/1000)/(3.7*K34))+(1.255*(N34/1000)/M34)/(Q34*K34^3/(2*M34))^0.5),"") ->  | M34: =IFERROR(VLOOKUP($F34,'Water Properties'!$A$2:$C$82,3),"") ->  | N34: =IFERROR(VLOOKUP($F34,'Water Properties'!$A$2:$C$82,2),"") ->  | O34: =IF(AND(G34>0,K34>0,ISNUMBER(G34),ISNUMBER(K34)),G34/(PI()*(K34/2)^2)/1000,"") ->  | P34: Not Determined | R34: =IF(OR(H34="",OR(ISNUMBER(FIND("Z",Configuration_Plus_Design)),Summary!$D$12="Z")),"",VLOOKUP(H34,INDIRECT("Table"&Summary!$C$19),HLOOKUP(Summary!$D$12,INDIRECT("Mini"&Summary!$C$19),2,FALSE),TRUE)) ->  | S34: =IF(OR(R34="",Q34=""),"TBC",IF(P34="Applicable","Exempt",IF(R34>Q34,"Satisfies Clause J5.7","Clause J5.7 Not Satisfied"))) -> TBC | T34: =IF(OR(I34="",Q34=""),"",I34*Q34/1000) ->  | U34: =IF(OR(R34="",I34=""),"",R34*I34/1000) ->  | V34: =IFERROR(M34*(G34/1000)*K34/((PI()*(K34/2)^2)*(N34/1000)),0) -> 0 | X34: =IF(COUNTBLANK(E34:H34)+COUNTBLANK(J34:K34)>0,FALSE,TRUE) -> FALSE
C35: Copy Row | E35: Copper Type B to AS1432 | J35: 0.015 | K35: =IFERROR((IF(E35="Custom",IF(ISBLANK(H35),"",H35/1000),INDEX('Pipe System Lookup Values'!$C$4:$G$20,MATCH('Pipe Details (104)'!H35,'Pipe System Lookup Values'!$B$4:$B$20,0),MATCH(E35,'Pipe System Lookup Values'!$C$3:$H$3,0))/1000)),"") ->  | M35: =IFERROR(VLOOKUP($F35,'Water Properties'!$A$2:$C$82,3),"") ->  | N35: =IFERROR(VLOOKUP($F35,'Water Properties'!$A$2:$C$82,2),"") ->  | O35: =IF(AND(G35>0,K35>0,ISNUMBER(G35),ISNUMBER(K35)),G35/(PI()*(K35/2)^2)/1000,"") ->  | P35: Not Determined | R35: =IF(OR(H35="",OR(ISNUMBER(FIND("Z",Configuration_Plus_Design)),Summary!$D$12="Z")),"",VLOOKUP(H35,INDIRECT("Table"&Summary!$C$19),HLOOKUP(Summary!$D$12,INDIRECT("Mini"&Summary!$C$19),2,FALSE),TRUE)) ->  | S35: =IF(OR(R35="",Q35=""),"TBC",IF(P35="Applicable","Exempt",IF(R35>Q35,"Satisfies Clause J5.7","Clause J5.7 Not Satisfied"))) -> TBC | V35: 0 | W35: 5,0.015,999,1.138,Copper Type B to AS1432 | X35: =IF(COUNTBLANK(E35:H35)+COUNTBLANK(J35:K35)>0,FALSE,TRUE) -> FALSE
C36: 1 | E36: Copper Type B to AS1432 | K36: =IFERROR((IF(E36="Custom",IF(ISBLANK(H36),"",H36/1000),INDEX('Pipe System Lookup Values'!$C$4:$G$20,MATCH('Pipe Details (104)'!H36,'Pipe System Lookup Values'!$B$4:$B$20,0),MATCH(E36,'Pipe System Lookup Values'!$C$3:$H$3,0))/1000)),"") ->  | M36: =IFERROR(VLOOKUP($F36,'Water Properties'!$A$2:$C$82,3),"") ->  | N36: =IFERROR(VLOOKUP($F36,'Water Properties'!$A$2:$C$82,2),"") ->  | P36: Not Determined | R36: =IF(OR(H36="",OR(ISNUMBER(FIND("Z",Configuration_Plus_Design)),Summary!$D$12="Z")),"",VLOOKUP(H36,INDIRECT("Table"&Summary!$C$19),HLOOKUP(Summary!$D$12,INDIRECT("Mini"&Summary!$C$19),2,FALSE),TRUE)) ->  | S36: =IF(OR(R36="",Q36=""),"TBC",IF(P36="Applicable","Exempt",IF(R36>Q36,"Satisfies Clause J5.7","Clause J5.7 Not Satisfied"))) -> TBC | V36: 0 | W36: 5,0.015,999,1.138,Copper Type B to AS1432 | X36: =IF(COUNTBLANK(E36:H36)+COUNTBLANK(J36:K36)>0,FALSE,TRUE) -> FALSE
B37: Average | D37: Custom | F37: 1 | G37: =IFERROR(IF(MAX($G36:$G36)/MIN($G36:$G36)>1.01,FALSE,TRUE),TRUE) -> TRUE | I37: =SUMIFS(I36:I36,$X36:$X36,TRUE,$P36:$P36,"Not Applicable") -> 0 | K37: =IFERROR(-1000*PI()*(P37*J37^5/(2*L37))^0.5*LOG(((I37/1000)/(3.7*J37))+(1.255*(M37/1000)/L37)/(P37*J37^3/(2*L37))^0.5),"") ->  | N37: Head in the units specified for pump head -----> | O37: =IFERROR(D42/VLOOKUP('Pump Details'!C30,'Lookup Values'!A52:B56,2,FALSE)*'Lookup Values'!B52,"") ->  | R37: Insufficient Data | S37: =COUNTIF($S36:$S36,"TBC") -> 1 | T37: =SUMIFS(T36:T36,$X36:$X36,TRUE,$P36:$P36,"Not Applicable") -> 0 | U37: =SUMIFS(U36:U36,$X36:$X36,TRUE,$P36:$P36,"Not Applicable") -> 0
B38: Total | F38: 1 | O38: =IF(AND('Pump Details'!C19="Alternate",Summary!B16='Lookup Values'!A5,'Pump Details'!C31>0),IF(C37>'Pump Details'!C31,"Warning","No Warning"),"No Warning") -> No Warning | R38: Insufficient Data | S38: =IFERROR(COUNTIF($S36:$S36,"Exempt")/COUNTA($S36:$S36),0) -> 0
B40: Piping Summary
B41: Component Level Satisfaction | D41: ="Average Pressure Drop" & CHAR(10) & "Pa/m" -> Average Pressure Drop Pa/m | E41: ="Maximum Pressure Drop" & CHAR(10) & "Pa/m" -> Maximum Pressure Drop Pa/m | G41: Note: This pressure drop only includes straight sections of pipe. Designers should ensure that all fittings are also accounted for in their pump selections.
B42: =IF(ExemptCheckFormula=1,"Exempt",IF(COUNTIF(D42:F42,"TBC")+IF(Method_Tag="B",TBC_Check_Formula,0)>0,"Insufficient Data",IFERROR(IF(D42<=E42,"Satisfies Clause J5.7","Clause J5.7 Not Satisfied"),"Insufficient Data"))) -> Insufficient Data | D42: =IF(D12="B",IF(ExemptCheckFormula=1,"Exempt",IFERROR(1000*Total_PD_Calc/Total_Length,"TBC")),IF(D12="A",IF(E27="","TBC",E27),"TBC")) -> TBC | E42: =IF(D12="B",IF(ExemptCheckFormula=1,"Exempt",IFERROR(1000*Total_Max_PD_Calc/Total_Length,"TBC")),IF(D12="A",T28,"TBC")) -> TBC
B44: IMPORTANT NOTICE AND DISCLAIMER IN RESPECT OF THIS PUMP SYSTEM CALCULATOR

Sheet Pump Details (hidden)
G2: Calculator
B4: System General Information
B5: Building Name and Description | E5: Pump Tag | F5: System Description
B6: =IF(Summary!B6="","",Summary!B6) ->  | E6: =IF(Summary!D6="","",Summary!D6) ->  | F6: =IF(Summary!E6="","",Summary!E6) -> 
B8: Pump Characteristics
B9: Pump Configuration | C9: Pump Design | E9: Pump Stages | F9: Pump Speed
B10: =IF(Summary!B16="","",Summary!B16) -> -Select- | C10: =IF(Summary!C16="","",Summary!C16) -> -Select- | E10: =IF(Summary!D16="","",Summary!D16) -> -Select- | F10: =IF(Summary!E16="","",Summary!E16) -> -Select-
B12: Component Level Satisfaction
B13: Energy Efficiency Index | C13: Hydraulic Power Output | D13: Pump Component
C14: kW
D15: =IF(OR(ISBLANK(B15),ISBLANK(C15)),"Insufficient Data",IF(C15<2.5,IF(B15<=0.27,"Satisfies Clause J5.7","Clause J5.7 Not Satisfied"),"Inapplicable")) -> Insufficient Data
B19: Method | C19: None | D19: =IFERROR(VLOOKUP(Pump_Method,'Lookup Values'!A72:B75,2,FALSE),"Z") -> Z | E19: Complete | F19: =IF(C19="Alternate",IF(C44="Insufficient Data","Please complete on the Pump Details sheet",IF(Summary!E27="Insufficient Data","Complete for component level check only","Complete")),IF(C19="Simple",IF(C26="Insufficient Data","Please complete on the Pump Details sheet","Complete for component level check only"),"Please complete on the Pump Details sheet")) -> Please complete on the Pump Details sheet
B21: The Simple Method requires only the pump's Minimum Efficiency Index. However, the system can only be evaluated on a component level if this option is chosen. | E21: The Alternate Method requires information on the system's water flow rate, system head, number of pump impellers and efficiency (at its best efficiency point). Although this requires more information, it also allows for the system to be evaluated as a whole.
B24: Component Level Satisfaction
B25: Minimum Efficiency Index | C25: Pump Component
C26: =IF(OR(Summary!C20="Z",Summary!D20="Z",Summary!E20="Z"),"Insufficient Data",IF(OR(Summary!C20="F",Summary!E20="C"),"Inapplicable",IF(ISBLANK(B26),"Insufficient Data",IF(B26>=0.4,"Satisfies Clause J5.7","Clause J5.7 Not Satisfied")))) -> Insufficient Data
B28: Details For Alternate Energy Efficiency Method
B29: Water Flow Rate | C29: System Head | D29: Number of series impellers | E29: Efficiency at Best Efficiency Point
B30: L/s | C30: kPa | D30: # | E30: %
B33: (Hidden calculations)
B34: Water flow rate | C34: Water flow rate | D34: Number of impellers | E34: Rotational speed | F34: System head
B35: m3/hr | C35: m3/s | D35: # | E35: rpm | F35: m
B36: =IF(COUNTBLANK(C36)>0,"",C36*60*60) ->  | C36: =IF(COUNTBLANK(B30:B31)>0,"",B31*VLOOKUP(B30,'Lookup Values'!$A$45:$B$48,2,FALSE)) ->  | D36: =IF(Summary!D16='Lookup Values'!A61,1,IF(D31="","",'Pump Details'!D31)) ->  | E36: =VLOOKUP(Summary!$E$20,'Lookup Values'!$B$19:$C$22,2,FALSE) -> N/A | F36: =IF(COUNTBLANK(C30:C31)>0,"",C31*VLOOKUP(C30,'Lookup Values'!$A$52:$B$56,2,FALSE)) -> 
B38: Specific speed | C38: x | D38: Summary MEI | E38: y | F38: Cpumptype
B39: /min | D39: =IF(C44="Inapplicable","N/A",IF(C44="Insufficient Data","TBC",IF(C44="Satisfies Clause J5.7",">0.40","<0.40"))) -> TBC
B40: =IF(COUNTBLANK(B31:C31)+COUNTBLANK(E31)+COUNTBLANK(D36)+COUNTIF(E36,"N/A")+COUNTBLANK(E36)>0,"",E36*(C36^0.5)/((1/D36)*F36)^(3/4)) ->  | C40: =IF(COUNTBLANK(B40)>0,"",LN(B40)) ->  | E40: =IF(COUNTBLANK(B36)>0,"",LN(B36)) ->  | F40: =INDEX('Lookup Values'!$D$27:$J$30,MATCH(Summary!$E$20,'Lookup Values'!$C$27:$C$30,0),MATCH(Summary!$C$20,'Lookup Values'!$D$26:$J$26,0)) -> TBC
B41: Component Level Satisfaction
B42: Required Efficiency | C42: Pump Component
B43: %
B44: =IF(F40="N/A","Inapplicable",IF(F40="TBC","Insufficient Data",IF(COUNTBLANK(C40)+COUNTBLANK(E40:F40)>0,"",(88.59*C40+13.46*E40-11.48*C40^2-0.85*E40^2-0.38*C40*E40-F40)/100))) -> Insufficient Data | C44: =IF(B44="Inapplicable","Inapplicable",IF(OR(COUNTBLANK(E31)>0,COUNTBLANK(B44)>0,B44="Insufficient Data"),"Insufficient Data",IF(B44<E31,"Satisfies Clause J5.7","Clause J5.7 Not Satisfied"))) -> Insufficient Data
B48: Total Pump Compliance Check (hidden)
B49: =IF(B10='Lookup Values'!A4,'Pump Details'!D15,IF(AND('Pump Details'!B10='Lookup Values'!A5,C19<>"None"),IF(C19="Alternate",C44,C26),"Insufficient Data")) -> Insufficient Data
B50: IMPORTANT NOTICE AND DISCLAIMER IN RESPECT OF THIS PUMP SYSTEM CALCULATOR

Sheet Pipe Details (Template) (hidden)
Y2: Calculator
T3: =S3+1 -> 1 | U3: 2 | V3: 3 | W3: 4 | X3: 5
B4: System General Information
B5: Building Name and Description | E5: Pump Tag | G5: System Description
B6: =IF(Summary!B6="","",Summary!B6) ->  | E6: =IF(Summary!D6="","",Summary!D6) ->  | G6: =IF(Summary!E6="","",Summary!E6) -> 
B8: System Characteristics
B9: =Summary!B9 -> Pipe System Type | D9: =Summary!C9 -> System Speed Control | E9: =Summary!D9 -> Operating Hours Per Annum
B10: =IF(Summary!B10="","",Summary!B10) -> -Select- | D10: =IF(Summary!C10="","",Summary!C10) -> -Select- | E10: =IF(Summary!D10="","",Summary!D10) -> -Select-
B12: Method | C12: None | D12: =VLOOKUP(C12,'Lookup Values'!A66:B69,2,FALSE) -> Z
B14: The Simple Method requires the average pressure drop to be pre-calculated. The maximum pressure drop allowed may be lower than that of a fully described system. | F14: The Complex Method allows for the piping to be entered and both the average pressure drop and maximum pressure drop to be calculated taking into account variations in pipe size throughout the system.
B16: Piping Details | L16: Calculation Behind Simple Method
B17: Diameter Present | L17: Diameter reference | M17: Max PD | N17: Present | T17: Max PD or "N/A"
L18: 0 | M18: =IF(OR((ISNUMBER(FIND(Configuration_Plus_Design,"Z"))),Summary!$D$12="Z"),0,VLOOKUP(L18,INDIRECT("Table"&Summary!$C$19),HLOOKUP(Summary!$D$12,INDIRECT("Mini"&Summary!$C$19),2,FALSE),TRUE)) -> 0 | N18: TRUE | T18: =IF(N18,M18,"N/A") -> 0
L19: 25 | M19: =IF(OR((ISNUMBER(FIND(Configuration_Plus_Design,"Z"))),Summary!$D$12="Z"),0,VLOOKUP(L19,INDIRECT("Table"&Summary!$C$19),HLOOKUP(Summary!$D$12,INDIRECT("Mini"&Summary!$C$19),2,FALSE),TRUE)) -> 0 | N19: TRUE | T19: 0
L20: 32 | M20: =IF(OR((ISNUMBER(FIND(Configuration_Plus_Design,"Z"))),Summary!$D$12="Z"),0,VLOOKUP(L20,INDIRECT("Table"&Summary!$C$19),HLOOKUP(Summary!$D$12,INDIRECT("Mini"&Summary!$C$19),2,FALSE),TRUE)) -> 0 | N20: TRUE | T20: 0
L21: 40 | M21: =IF(OR((ISNUMBER(FIND(Configuration_Plus_Design,"Z"))),Summary!$D$12="Z"),0,VLOOKUP(L21,INDIRECT("Table"&Summary!$C$19),HLOOKUP(Summary!$D$12,INDIRECT("Mini"&Summary!$C$19),2,FALSE),TRUE)) -> 0 | N21: TRUE | T21: 0
L22: 50 | M22: =IF(OR((ISNUMBER(FIND(Configuration_Plus_Design,"Z"))),Summary!$D$12="Z"),0,VLOOKUP(L22,INDIRECT("Table"&Summary!$C$19),HLOOKUP(Summary!$D$12,INDIRECT("Mini"&Summary!$C$19),2,FALSE),TRUE)) -> 0 | N22: TRUE | T22: 0
L23: 65 | M23: =IF(OR((ISNUMBER(FIND(Configuration_Plus_Design,"Z"))),Summary!$D$12="Z"),0,VLOOKUP(L23,INDIRECT("Table"&Summary!$C$19),HLOOKUP(Summary!$D$12,INDIRECT("Mini"&Summary!$C$19),2,FALSE),TRUE)) -> 0 | N23: TRUE | T23: 0
L24: 80 | M24: =IF(OR((ISNUMBER(FIND(Configuration_Plus_Design,"Z"))),Summary!$D$12="Z"),0,VLOOKUP(L24,INDIRECT("Table"&Summary!$C$19),HLOOKUP(Summary!$D$12,INDIRECT("Mini"&Summary!$C$19),2,FALSE),TRUE)) -> 0 | N24: TRUE | T24: 0
E25: System Information | L25: 100 | M25: =IF(OR((ISNUMBER(FIND(Configuration_Plus_Design,"Z"))),Summary!$D$12="Z"),0,VLOOKUP(L25,INDIRECT("Table"&Summary!$C$19),HLOOKUP(Summary!$D$12,INDIRECT("Mini"&Summary!$C$19),2,FALSE),TRUE)) -> 0 | N25: TRUE | T25: 0
E26: Average Pressure Drop Pa/m | L26: 125 | M26: =IF(OR((ISNUMBER(FIND(Configuration_Plus_Design,"Z"))),Summary!$D$12="Z"),0,VLOOKUP(L26,INDIRECT("Table"&Summary!$C$19),HLOOKUP(Summary!$D$12,INDIRECT("Mini"&Summary!$C$19),2,FALSE),TRUE)) -> 0 | N26: TRUE | T26: 0
L27: 150 | M27: =IF(OR((ISNUMBER(FIND(Configuration_Plus_Design,"Z"))),Summary!$D$12="Z"),0,VLOOKUP(L27,INDIRECT("Table"&Summary!$C$19),HLOOKUP(Summary!$D$12,INDIRECT("Mini"&Summary!$C$19),2,FALSE),TRUE)) -> 0 | N27: TRUE | T27: 0
B28: This row has sums in it | N28: =COUNTIF(N18:N27,TRUE) -> 10 | T28: =IF(N28=0,"TBC",MIN(T18:T27)) -> 0
B30: Piping Details
B31: ID | C31: Description | D31: Material | E31: Temperature | F31: Flow Rate | G31: Diameter | H31: Length | I31: Roughness | J31: Internal Diameter | K31: Flow Rate For Iterative Solving | L31: Fluid Density | M31: Dynamic Viscosity | N31: Velocity | O31: Velocity Check | P31: Pressure Drop | Q31: Maximum PD | R31: Compliant | S31: Total PD | T31: Total Maximum PD
E32: °C | F32: L/s | G32: mm | H32: m | I32: mm | J32: m | K32: L/s | L32: kg/m³ | M32: mPas | N32: m/s | P32: Pa/m | Q32: Pa/m | S32: kPa | T32: kPa
B33: Controls | C33: =IF(ISBLANK(B32),B31,B31 & CHAR(10) & B32) -> ID | D33: Description | E33: Material | F33: Temperature °C | G33: Flow Rate L/s | H33: Diameter mm | I33: Length m | J33: Roughness mm | K33: Internal Diameter m | L33: Flow Rate For Iterative Solving L/s | M33: Fluid Density kg/m³ | N33: Dynamic Viscosity mPas | O33: Velocity m/s | P33: Velocity Check | Q33: Pressure Drop Pa/m | R33: Maximum PD Pa/m | S33: Compliant | T33: Total PD kPa | U33: Total Maximum PD kPa | V33: Reynolds Number | W33: Velocity Check Conditions | X33: Ready For DP Calc
C34: Template Row (Hidden) | E34: Copper Type B to AS1432 | H34: 20 | K34: =IFERROR((IF(E34="Custom",IF(ISBLANK(H34),"",H34/1000),INDEX('Pipe System Lookup Values'!$C$4:$G$20,MATCH('Pipe Details (Template)'!H34,'Pipe System Lookup Values'!$B$4:$B$20,0),MATCH(E34,'Pipe System Lookup Values'!$C$3:$H$3,0))/1000)),"") -> 0.01693 | L34: =IFERROR(-1000*PI()*(Q34*K34^5/(2*M34))^0.5*LOG(((J34/1000)/(3.7*K34))+(1.255*(N34/1000)/M34)/(Q34*K34^3/(2*M34))^0.5),"") ->  | M34: =IFERROR(VLOOKUP($F34,'Water Properties'!$A$2:$C$82,3),"") ->  | N34: =IFERROR(VLOOKUP($F34,'Water Properties'!$A$2:$C$82,2),"") ->  | O34: =IF(AND(G34>0,K34>0,ISNUMBER(G34),ISNUMBER(K34)),G34/(PI()*(K34/2)^2)/1000,"") ->  | P34: Not Determined | R34: =IF(OR(H34="",OR(ISNUMBER(FIND("Z",Configuration_Plus_Design)),Summary!$D$12="Z")),"",VLOOKUP(H34,INDIRECT("Table"&Summary!$C$19),HLOOKUP(Summary!$D$12,INDIRECT("Mini"&Summary!$C$19),2,FALSE),TRUE)) ->  | S34: =IF(OR(R34="",Q34=""),"TBC",IF(P34="Applicable","Exempt",IF(R34>Q34,"Satisfies Clause J5.7","Clause J5.7 Not Satisfied"))) -> TBC | T34: =IF(OR(I34="",Q34=""),"",I34*Q34/1000) ->  | U34: =IF(OR(R34="",I34=""),"",R34*I34/1000) ->  | V34: =IFERROR(M34*(G34/1000)*K34/((PI()*(K34/2)^2)*(N34/1000)),0) -> 0 | X34: =IF(COUNTBLANK(E34:H34)+COUNTBLANK(J34:K34)>0,FALSE,TRUE) -> FALSE
C35: Copy Row | E35: Copper Type B to AS1432 | J35: 0.015 | K35: =IFERROR((IF(E35="Custom",IF(ISBLANK(H35),"",H35/1000),INDEX('Pipe System Lookup Values'!$C$4:$G$20,MATCH('Pipe Details (Template)'!H35,'Pipe System Lookup Values'!$B$4:$B$20,0),MATCH(E35,'Pipe System Lookup Values'!$C$3:$H$3,0))/1000)),"") ->  | M35: =IFERROR(VLOOKUP($F35,'Water Properties'!$A$2:$C$82,3),"") ->  | N35: =IFERROR(VLOOKUP($F35,'Water Properties'!$A$2:$C$82,2),"") ->  | O35: =IF(AND(G35>0,K35>0,ISNUMBER(G35),ISNUMBER(K35)),G35/(PI()*(K35/2)^2)/1000,"") ->  | P35: Not Determined | R35: =IF(OR(H35="",OR(ISNUMBER(FIND("Z",Configuration_Plus_Design)),Summary!$D$12="Z")),"",VLOOKUP(H35,INDIRECT("Table"&Summary!$C$19),HLOOKUP(Summary!$D$12,INDIRECT("Mini"&Summary!$C$19),2,FALSE),TRUE)) ->  | S35: =IF(OR(R35="",Q35=""),"TBC",IF(P35="Applicable","Exempt",IF(R35>Q35,"Satisfies Clause J5.7","Clause J5.7 Not Satisfied"))) -> TBC | V35: 0 | W35: 5,0.015,999,1.138,Copper Type B to AS1432 | X35: =IF(COUNTBLANK(E35:H35)+COUNTBLANK(J35:K35)>0,FALSE,TRUE) -> FALSE
C36: 1 | E36: Copper Type B to AS1432 | K36: =IFERROR((IF(E36="Custom",IF(ISBLANK(H36),"",H36/1000),INDEX('Pipe System Lookup Values'!$C$4:$G$20,MATCH('Pipe Details (Template)'!H36,'Pipe System Lookup Values'!$B$4:$B$20,0),MATCH(E36,'Pipe System Lookup Values'!$C$3:$H$3,0))/1000)),"") ->  | L36: =IFERROR(-1000*PI()*(Q36*K36^5/(2*M36))^0.5*LOG(((J36/1000)/(3.7*K36))+(1.255*(N36/1000)/M36)/(Q36*K36^3/(2*M36))^0.5),"") ->  | M36: =IFERROR(VLOOKUP($F36,'Water Properties'!$A$2:$C$82,3),"") ->  | N36: =IFERROR(VLOOKUP($F36,'Water Properties'!$A$2:$C$82,2),"") ->  | P36: Not Determined | R36: =IF(OR(H36="",OR(ISNUMBER(FIND("Z",Configuration_Plus_Design)),Summary!$D$12="Z")),"",VLOOKUP(H36,INDIRECT("Table"&Summary!$C$19),HLOOKUP(Summary!$D$12,INDIRECT("Mini"&Summary!$C$19),2,FALSE),TRUE)) ->  | S36: =IF(OR(R36="",Q36=""),"TBC",IF(P36="Applicable","Exempt",IF(R36>Q36,"Satisfies Clause J5.7","Clause J5.7 Not Satisfied"))) -> TBC | T36: =IF(OR(I36="",Q36=""),"",I36*Q36/1000) ->  | U36: =IF(OR(R36="",I36=""),"",R36*I36/1000) ->  | V36: =IFERROR(M36*(G36/1000)*K36/((PI()*(K36/2)^2)*(N36/1000)),0) -> 0 | W36: 5,0.015,999,1.138,Copper Type B to AS1432 | X36: =IF(COUNTBLANK(E36:H36)+COUNTBLANK(J36:K36)>0,FALSE,TRUE) -> FALSE
B37: Average | D37: Custom | F37: 1 | I37: =SUMIFS(I36,$X36,TRUE,$P36,"Not Applicable") -> 0 | K37: =IFERROR(-1000*PI()*(P37*J37^5/(2*L37))^0.5*LOG(((I37/1000)/(3.7*J37))+(1.255*(M37/1000)/L37)/(P37*J37^3/(2*L37))^0.5),"") ->  | N37: Head in the units specified for pump head -----> | O37: =IFERROR(D42/VLOOKUP('Pump Details'!C30,'Lookup Values'!A52:B56,2,FALSE)*'Lookup Values'!B52,"") ->  | R37: Insufficient Data | T37: =SUMIFS(T36,$X36,TRUE,$P36,"Not Applicable") -> 0 | U37: =SUMIFS(U36,$X36,TRUE,$P36,"Not Applicable") -> 0
B38: Total | F38: 1 | O38: =IF(AND('Pump Details'!C19="Alternate",Summary!B16='Lookup Values'!A5,'Pump Details'!C31>0),IF(C37>'Pump Details'!C31,"Warning","No Warning"),"No Warning") -> No Warning | R38: Insufficient Data
B40: Piping Summary
B41: Component Level Satisfaction | D41: ="Average Pressure Drop" & CHAR(10) & "Pa/m" -> Average Pressure Drop Pa/m | E41: ="Maximum Pressure Drop" & CHAR(10) & "Pa/m" -> Maximum Pressure Drop Pa/m | G41: Note: This pressure drop only includes straight sections of pipe. Designers should ensure that all fittings are also accounted for in their pump selections.
B42: =IF(ExemptCheckFormula=1,"Exempt",IF(COUNTIF(D42:F42,"TBC")+IF(Method_Tag="B",TBC_Check_Formula,0)>0,"Insufficient Data",IFERROR(IF(D42<=E42,"Satisfies Clause J5.7","Clause J5.7 Not Satisfied"),"Insufficient Data"))) -> Insufficient Data | D42: =IF(D12="B",IF(ExemptCheckFormula=1,"Exempt",IFERROR(1000*Total_PD_Calc/Total_Length,"TBC")),IF(D12="A",IF(E27="","TBC",E27),"TBC")) -> TBC | E42: =IF(D12="B",IF(ExemptCheckFormula=1,"Exempt",IFERROR(1000*Total_Max_PD_Calc/Total_Length,"TBC")),IF(D12="A",T28,"TBC")) -> TBC
B44: IMPORTANT NOTICE AND DISCLAIMER IN RESPECT OF THIS PUMP SYSTEM CALCULATOR

Sheet Help Guide (hidden)
B4: Table of Contents
B5: Technical Information
B6: Information on the calculator, its configuration and operation
B7: How To Use The Calculator
B8: A step-by-step guide to using the calculator
B9: Calculation Details
B10: Background engineering information on how the calculator performs its operations
B11: Change Log
B12: A list of changes made by each update to the calculator
B14: Technical Information
B15: 1. Version
C16: This is a release version of the Pump System Calculator, first issued for use with Part J5 Air-conditioning and ventilation systems, NCC 2019 Volume One, Deemed-to-Satisfy (DTS) Provisions.
C17: The file name and summary sheet indicate the version number. The latest version should always be used.
C18: A record of changes made to each version of this calculator appears at the end of the Help section.
B19: 2. Software version
C20: This calculator has been developed and tested on the Microsoft Windows version of Microsoft Excel 2013. Other configurations have not been tested.
C21: For operation of the Pump System Calculator, macros must be enabled. If they are not, the calculator will display an error.
B22: 3. Displaying the calculator form
C23: This calculator has been designed for view at 100% zoom. Some scrolling may be necessary to view the entire calculator, depending upon your system configuration.
B24: 4. Configuration of the calculator
C25: The Pump System Calculator uses four different sheets to provide a logical sequence of operations.
C26: The All Systems sheet serves as a schedule of pumps for the project, and allows for navigation between them.
C27: The Summary sheet includes general information about a particular system and computes the final results.
C28: The Pump Details sheet includes the efficiency of the pump, and calculations as required to verify pump compliance on a component level.
C29: The Pipe Details sheet allows the user to input the details of their pipe system, and evaluates its pressure drops to compare with the requirements of the NCC.
B30: 5. Changing input details
C31: Generally cells coloured in light yellow are available for user input. On occasion, an incorrect entry will be coloured red and be available for user input.
C32: Pipe System rows coloured red or green to indicate their compliance will remain available for user input. Other cells are involved in calculations or otherwise are not editable.
C33: On the Summary sheet, the general configuration of the system can be input. Building, system and pump names are also available for input here.
C34: The Pump Details sheet changes depending upon the pump configuration options selected on the Summary. These options are listed on the Pump Details sheet for reference, but must be edited on the Summary sheet.
C35: On the Pump Details sheet, the efficiency of the pump selected can be input, with the particular details to be input depending upon the pump options and method selected.
C36: The Pipe Details sheet allows two different methods - a simple option if pressure drops have already been calculated, or a complex option to determine these within the calculator.
C37: The procedure and details to be input on each sheet are described in more detail in How To Use The Calculator section of the Help Guide.
B38: 6. Printing
C39: The Report can be printed by selecting the appropriate button on the ribbon. This has been designed for printing and record keeping.
C40: Alternately, the calculator can be printed using the File/Print menu. The print area has been preset to fit onto one A4 page for each sheet.
B41: 7. Navigation
C42: Due to the calculator's configuration, conventional navigation using the workbook tabs is not available.
C43: Instead, the custom ribbon tab enables navigation between sheets and additional control options.
C44: Buttons are also included on the All Systems sheet to allow users to immediately inspect an area of interest.
C45: Although the calculator allows many systems to be evaluated on a project, only one can be active at any time.
C46: The active systems is highlighted with an italic font on the All Systems sheet, as well as references to pump tags across the other worksheets.
C47: It can be changed by clicking within another row on the All Systems sheet, using the drop down at the left of the ribbon, or through clicking one of the corresponding Go To buttons on the All Systems sheet.
B48: 8. User's worksheet
C49: A protected worksheet with the majority of cells accessible has been provided for the user to make their own notes and caculations.
C50: Protection is necessary to maintain the integrity of the calculator, but does restrict the functions and operations accessible to the user. The worksheet can be accessed by selecting the 'Worksheet' tab within the bottom pane.
C51: Use of this worksheet is optional and responsibility for its contents and outputs rests entirely with the user. The ABCB accepts no responsibility for any calculations performed or the outputs of these calculations on this worksheet.
B52: 9. Macros
C53: This calculator makes heavy use of macros and code to perform its operations. As part of its protection, the execution of other macros which may interfere with its operation are prohibited.
B54: 10. State and Territory variations
C55: This calculator does not account for State and Territory variations to Part J5 Air-conditioning and ventilation systems, NCC 2019 Volume One, Deemed-to-Satisfy (DTS) Provisions.
B56: 11. Defined terms
C57: Please note that the calculator incorporates NCC defined terms. Refer to Part A1 of NCC 2019 Volume One for further information on defined terms.
B59: How to use the Calculator
B60: Step One - The Ribbon
B62: When you open the calculator, instead of the normal Microsoft Excel menu, the custom Pump System Calculator ribbon will appear.
B63: The first group consists of only one object - the system change drop down.
B64: Clicking this will bring down a list of pump tags, and clicking any of them will change the active system to that one.
B66: The second grouping is used to navigate between the sheets.
B67: Clicking All Systems, Summary, Pipe Details or Pump Details will bring you to that sheet for the particular system which is active. The Worksheet is also navigable here.
B68: These sheets are the core of the calculator, so we'll be using these buttons quite a bit in the guide to follow.
B70: The third grouping is concerned with reporting.
B71: You can go to the report sheet, bringing together the summaries for all systems within this project, or print it from here.
B73: The fourth grouping is a link to the help, which brings you to this guide.
B75: The fifth grouping includes zoom functions, for ease of accessibility.
B77: The remainder of this guide will demonstrate how to operate each of the individual sheets which can be reached through this ribbon.
B79: Step Two - Project Information
B81: Click the All Systems button in the ribbon to reach the project's base page.
B83: The All Systems sheet serves as a schedule of pumps, summarising information about the project and each system within.
B85: Enter your project's basic information at the top. This serves for your own identification of this project, and will be repeated in the report we generate at the end.
B89: Below this, you are presented with a table of systems. This serves as the project's schedule.
B93: At present, there should only be one system there.
B94: Each system, in addition to the information listed, has a series of control buttons on the left hand side.
B95: The Plus (+) button adds another system to the project.
B96: The Minus (-) button removes a system from the project.
B97: The Copy (C) and Paste (P) buttons allow you to duplicate existing sytsems. We'll cover those in a little while, but first we need to fill out our schedule.
B98: The Default (D) button sets a system as the default. All future systems added will be modelled on the default system.
B100: Enter the system description and tag for your first pump.
B101: Then, you can click on the Plus button to add another system to the project. Repeat this until all your systems are included.
B102: As you proceed with this, you'll notice that only one row has italic font, and the others are conventional. The italic font designates the currently active system.
B103: The easiest way to change the active system is to click within another system's row. You'll find that the other system is now highlighted in italic.
B104: Alternately, if you click the Change To button on the ribbon you'll find that all your pump tags are listed, for easy navigation.
B105: Although the Pump System Calculator can hold as many systems as you like, you can only edit one system at a time. The other sheets are all concerned with the details of a particular system, so you need to have the correct one selected.
B107: If you have multiple systems which are similar, you can copy the data from one to the other.
B108: If you click the Copy (C) button in the controls of a row, the calculator takes record of its data. You won't notice any immediate change.
B109: However, once you click the Paste (P) button on another row, you'll be prompted to overwrite your data and then all the information for the copied row will be transferred.
B110: This covers not only basic configuration information but also all the index run details as well.
B111: So if you have similar systems, make ample use of the Copy and Paste functions - they'll save you time.
B112: The Default button allows you to set a system as the default. This means that whenever you add another system, its configuration will be based upon the default shystem.
B114: Select your first system. Remember that there are three ways to change the active system - clicking in a system's row, using the ribbon drop down, or the Go To buttons.
B115: Since we'll be heading to set up the system configuration, you can use the Go To button next to your incomplete configuration to change both active system and sheet.
B116: Alternately, you can select the system via either of the other methods and click the Summary button on the ribbon.
B118: Step Three - System Characteristics
B120: The Summary sheet serves as a hub for both system-wide information and a repository for results.
B124: Your building's name, along with the tag of the pump and system being analysed are listed along the top.
B126: Use the next row of drop down menus to choose the characteristics of your system.
B127: Choose your type of system to meet J5.7(d) - between a non-distributive system (per J5.7(d)(i)), and a distributive system (per J5.7(d)(ii)).
B128: Choose whether your system is constant or variable speed - this determines whether you need to comply with (A) or (B) within J5.7(d)'s sub-clauses.
B129: A variable speed pump is one with continuously variable control. A pump which only has two or three speed options, or one which isn't controlled to vary with demand is considered a constant speed pump.
B130: Select how many hours per annum your system operates. This can be computed by considering a typical period and extrapolating to the year, and is used within Table J5.7b to Table J5.7e.
B132: You can then enter the characteristics of your pump, using the next table of drop down menus.
B133: Select your pump configuration to determine whether you are complying with J5.7(b) or (c). To determine which type, please refer to those clauses of the NCC. Most pumps come under the 'Other' category, unless this is specifically a circulating system.
B134: Select your pump design, from the options contained within EU Commission Regulation No. 547/2012. If you have a circulator type pump, you may have a design which isn't any of the options given - in this case, select Other.
B135: Select whether your pump is single or multistage. If you have multiple series impellers, then you have a multistage pump, otherwise, you have a single stage pump.
B136: Select the speed at which your pump operates. Unless you are using a circulator, this must match the allowed pump designs of EU Commission Regulation No. 547/2012 - the calculator's results will tell you if you select an invalid speed.
B137: The EU Commission Regulations regarding Circulators and Other Pumps may be useful references for this. Links to these are available below.
B139: Commission Regulation (EU) No 622/2012, as referenced in J5.7(b)
B140: Commission Regulation (EU) No 547/2012, as referenced in J5.7(c)
B144: Step Four: Pipe Details
B146: The system characteristics you provided on the Summary are listed here for reference.
B147: Two options are available for determining the characteristics of the pipe within the system.
B151: The simple method is intended for cases where designers have already calculated the average pressure drop through their design process.
B152: This method allows the average pressure drop to be entered directly, and for the diameters within the system to be selected.
B153: As the system is not fully described, the maximum pressure drop is determined conservatively as the worst associated with an included diameter.
B155: The complex method allows for the system to be modelled and the pressure drop calculated.
B156: By knowing the quantities of pipe at each diameter, the allowable pressure drop can be determined more accurately.
B158: Select your preferred method by clicking the appropriate button.
B160: The simple method has two elements.
B164: A list of pipe diameters included in Tables J5.7a to J5.7d is located on the left.
B165: For each pipe diameter, tick the checkbox if it is included within your system, or untick it if it is not.
B167: On the right is the system's average pressure drop, in Pa/m.
B168: This can be determined from a designer's own calculations and entered within the cell.
B169: If you do not know your system's average pressure drop, then the complex method is more appropriate, as it allows you to model the system and calculate this.
B171: If you wish to change methods, click the Return to Method Selection button.
B173: The complex method allows you to build the index run of your pipe system and determine whether it complies with J5.7(d).
B177: Much like All Systems, Pipe Details allows you to build a table to suit your needs.
B178: Each row of the Piping Details table represents one configuration of pipe - you might have 20m of copper pipe at 50mm carrying 1L/s of water as one row, to take one example.
B180: The Plus (+), Minus (-), Copy (C), Paste (P) and Default (D) buttons are present and operate in the same manner as in All Systems.
B181: You can use the Plus (+) button to add more items to your system and Minus (-) to clear away unnecessary ones.
B182: Copy (C) and Paste (P) allow you to reuse similar data and save time.
B183: The Default (D) button lets you set a particular row as the default.
B184: When adding a new row it will be a copy of that default row, enabling you to set standard parameters like roughness, material and temperature once and have them repeated.
B186: For each row of pipe, enter a description, material, water temperature, water flow rate, length and roughness.
B187: The material used can be chosen from a drop down selector to suit common materials to Australian Standards, or you can select a custom material.
B188: For materials to Australian Standards, you can select their nominal diameter from those covered within the Standard, and the calculator will automatically work out its internal diameter to use in calculation.
B189: However, if you use a custom material, you will need to input the internal diameter yourself.
B190: Once this information is provided, the calculator will determine the pressure drop of each section of pipe, and compare it to the requirement of J5.7(d).
B191: It will also check whether the velocity check of J5.7(e)(ii) applies to each section of pipe, and account for this.
B192: These results are put together to determine the average pressure drop through the straight lengths of pipe provided. These should only be those on the index run.
B193: By comparing the average pressure drop with that allowed by J5.7(d), the calculator will determine whether the piping complies with J5.7(d) on a component level.
B197: Step Five - Pump Details
B199: After completing the pipe details, all that remains is to provide the details of the system's pump.
B201: The Pump Details sheet can change quite radically depending on your selections. The first split is between Circulators and Other Pumps, to determine compliance with J5.7(b) or J5.7(c).
B203: For circulator type pumps, you only need to identify the pump's Energy Efficiency Index and hydraulic power output. These should both be available from your pump supplier.
B207: Enter these values in the cells provided.
B208: The calculator will compare these with the requirement of J5.7(b) and determine whether you comply on a component level.
B212: For Other Pumps, you have two options to demonstrate compliance.
B216: The simple method allows you to enter only a single number - the pump's Minimum Efficiency Index. This is usually available with a supplier's pump selections.
B220: The calculator will compare this with the requirement of J5.7(c), and determine whether you comply on a component level.
B221: However, the simple method does not contain enough information to compute the pump's actual efficiency, and thus cannot be used in a system-wide compliance check under J5.7(a)(ii).
B223: If you want to check an Other Pump for systemic compliance, you need to choose the Alternate Method.
B224: The Return to Method Selection button allows you to go back to the method selection step and to instead choose the Alternate Method.
B228: The Alternate method uses the procedure within EU Commission Regulation No. 547/2012 to compute the required efficiency and compare it with the actual efficiency.
B229: Enter the water flow rate, pressure drop and efficiency of your pump at the Best Efficiency Point. If your pump is multistage, then you will also be required to enter how many series impellers are included here.
B230: Per the Regulation, this should be done at the Best Efficiency Point, but if information at this point is unavailable then using the selection point is conservative and allows you to demonstrate compliance.
B231: The dimensions used for water flow rate and system head can be changed by clicking on the units and using the drop down menu which results.
B232: The calculator will determine what efficiency is required to comply with the Minimum Efficiency Index and compare that with your pump, to determine if your selection complies with J5.7(c) on a component level.
B236: This completes the information required on this pump and the system as a whole.
B238: Step Six - Results
B240: To find the overall results for this system, we need to return back to the Summary sheet, so click the Summary button on the ribbon.
B241: After our initial system characteristics, the remainder of the Summary sheets serves as both a progress checker and to communicate the results.
B245: It will also pull together the results of each component, to tell if you comply with (b) and (c) (pump) and (d) (pipe) components of the J5.7 requirement, under J5.7(a)(i).
B246: If you need to leave a calculation part way through, the component results within the Summary will tell you which items are still remaining to be completed.
B250: If you do not comply with J5.7(a)(i), then the NCC 2019 allows compliance to be proven on a system level as well, under J5.7(a)(ii).
B251: If all the data has been provided (and the Alternate method has been used if this is an Other Pump), then the calculator will determine your energy usage compared with a system which meets the component requirements separately.
B252: This allows you to trade off improvements in one area against reductions in others to meet the intent of the energy efficiency requirements.
B256: The Pump System Calculator also summarises all its findings, to provide guidance around how you may be able to reach compliance.
B257: The Result within the Summary sheet is colour coded and summarised through a bold sentence at the top.
B258: It also contains information determined from your inputs across each component, and even handy hints on how your system might be able to comply, or which information is missing.
B262: This completes the procedure for a single system.
B263: The results will be summarised in All Systems, while you can move on to the next system using either the Change To drop down on the ribbon or by clicking within its row in All Systems.
B264: The same steps can be followed to complete and check compliance for all systems within the project.
B266: Step Seven - Reporting
B267: The All Systems sheet provides a quick summary of each system. But the calculator also provides the facility for a more complex report on the whole project.
B268: Click the Go To Report button on the ribbon to generate and go to the report.
B271: This report summarises the results in an easily printable document.
B272: Each system is represented on a different page, so you may need to scroll sideways to see them all.
B274: To print this for your records, select the Print Report button on the ribbon.
B275: This uses the standard Excel printing interface, so you can choose to output a PDF or to a physical printer to suit your needs.
B279: Calculation Details
B281: This section provides some background details on the calculations used within the calculator, to better inform you on its processes.
B282: The Other Pump Alternate Method follows the calculations within EU Commission Regulation No. 547/2012 to derive the required efficiency to meet a MEI of 0.4.
B285: where -
B296: where -
B299: The pressure drop through the piping system can be computed by using the Darcy-Weisbach equation:
B301: where -
B305: The friction factor f can be determined through the implicit Colebrook-White equation:
B307: where -
B309: These equations are brought together to form an implicit equation for the fluid flow rate, which is solved for iteratively using Excel's Goal Seek function:
B311: where the terms are as defined above, and -
B313: The Reynolds Number of each case is also compiuted, and below a Reynolds Number of 3000, a friction factor of 64/Re is used to simulate laminar flow, though such low Re numbers are unlikely in normal scenarios.
B314: The density and dynamic viscosity of the water are determined through a lookup table of these properties in water with varying temperature. This saves the user from having to look up such a table manually.
B315: The maximum allowed pressure drop for each section of pipe is determined by looking up Table J5.7b to Table J5.7e with the system properties provided.
B317: The velocity check builds a parallel table of diameters to determine the smallest pipe size compliant with J5.7(d) and its velocity.
B318: The Reynolds number is computed to determine whether the laminar friction factor should be used.
B319: When the flow is turbulent, the pressure drop through each diameter is initially determined through the Haaland equation as an explicit approximation of Colebrook-White to increase computational speed:
B321: Then, if the Haaland approximation gives a pressure drop per unit length within 100Pa/m of the maximum allowed, Colebrook-White is used to maximise accuracy.
B322: Through this, the smallest pipe size compliant with the J5.7(d) requirements is computed and the velocity at this size is checked against the requirement, in order to report back to the Pipe Details table whether J5.7(e)(ii) applies.
B323: This procedure is followed for each row of the pipe details table, whenever any of its core characteristics are changed.
B327: Change Log
... 6 more rows

Sheet Pipe Velocity Check (hidden)
B1: Pipe Velocity Check Sheet
B2: This sheet is entirely driven by macro, to ensure that cases where J5.7(e )(ii) applies are correctly arbitered
B4: Common Values
B5: Flow Rate | C5: Roughness | D5: Fluid Density | E5: Fluid Dynamic Viscosity | F5: Pressure Drop Requirement
B6: L/s | C6: mm | D6: kg/m3 | E6: m2/s | F6: Pa/m
B7: 5 | C7: 0.0015 | D7: 999.4 | E7: 1.234
B10: Nominal Pipe Diameter | C10: Internal Pipe Diameter | D10: Pressure Drop | E10: Velocity | F10: Calculated Flow Rate | G10: Pressure Drop Requirement | H10: Reynolds Number
B11: mm | C11: m | D11: Pa/m | E11: m/s | F11: L/s | G11: Pa/m
C12: 0.00485 | D12: 118115857.4 | E12: =$B$7/(PI()*(C12/2)^2)/1000 -> 270.6429046 | G12: 400 | H12: =$D$7*E12*C12/($E$7/1000) -> 1063071.731
C13: 0.00644 | D13: 27644345.96 | E13: =$B$7/(PI()*(C13/2)^2)/1000 -> 153.500003 | G13: 400 | H13: =$D$7*E13*C13/($E$7/1000) -> 800605.2635
C14: 0.00762 | D14: 11755207.97 | E14: 109.6402912 | G14: 400 | H14: 676627.0206
C15: 0.0108 | D15: 2033664.014 | E15: 54.57988446 | F15: =-1000*PI()*(D15*C15^5/(2*$D$7))^0.5*LOG((($C$7/1000)/(3.7*C15))+(1.255*($E$7/1000)/$D$7)/(D15*C15^3/(2*$D$7))^0.5) -> 4.971070405 | G15: 400 | H15: 477397.9534
C16: 0.01376 | D16: 610341.9768 | E16: 33.62352604 | G16: 400 | H16: 374701.8821
C17: 0.01693 | D17: 219811.006 | E17: 22.21090255 | F17: =-1000*PI()*(D17*C17^5/(2*$D$7))^0.5*LOG((($C$7/1000)/(3.7*C17))+(1.255*($E$7/1000)/$D$7)/(D17*C17^3/(2*$D$7))^0.5) -> 4.964817789 | G17: 400 | H17: 304542.1085
C18: 0.02286 | D18: 50682.35449 | E18: 12.18225458 | F18: =-1000*PI()*(D18*C18^5/(2*$D$7))^0.5*LOG((($C$7/1000)/(3.7*C18))+(1.255*($E$7/1000)/$D$7)/(D18*C18^3/(2*$D$7))^0.5) -> 4.964145877 | G18: 400 | H18: 225542.3402
C19: 0.02921 | D19: 15427.19213 | E19: 7.461343068 | G19: 400 | H19: 176511.3967
C20: 0.03556 | D20: 5962.776127 | E20: 5.034503167 | F20: =-1000*PI()*(D20*C20^5/(2*$D$7))^0.5*LOG((($C$7/1000)/(3.7*C20))+(1.255*($E$7/1000)/$D$7)/(D20*C20^3/(2*$D$7))^0.5) -> 4.965972816 | G20: 400 | H20: 144991.5044
C21: 0.04823 | D21: 1374.270619 | E21: 2.736815993 | F21: 4.967927001 | G21: 400 | H21: 106902.2993
C22: 0.06091 | D22: 452.9674294 | E22: 1.715943263 | F22: =-1000*PI()*(D22*C22^5/(2*$D$7))^0.5*LOG((($C$7/1000)/(3.7*C22))+(1.255*($E$7/1000)/$D$7)/(D22*C22^3/(2*$D$7))^0.5) -> 4.999993067 | G22: 400 | H22: 84647.80655
C23: 0.07276 | D23: 191.0937659 | E23: 1.20252674 | F23: 4.970792324 | G23: 400 | H23: 70861.70832
C24: 0.08544 | D24: 293.7041918 | E24: 0.8720826445 | F24: 9.70888222 | G24: 400 | H24: 60345.24692
C25: 0.09809 | D25: 284.6200768 | E25: 0.6616535605 | F25: 13.79210224 | G25: 400 | H25: 52562.93095

Sheet Lookup Values (hidden)
A2: System Roles | B2: Reference | C2: Description
A3: -Select- | B3: Z | C3: Please select a circulator to comply with J5.7(b) or another pump to comply with J5.7(c).
A4: Circulator | B4: A | C4: A glandless impeller pump with a rated hydraulic power of less than 2.5kW used in a closed loop system, per EU Commission Regulation No. 622/2012. These are commonly used to circulate heating hot water or as secondary pumps for chilled water systems.
A5: Other Pump | B5: B | C5: Any other pump used in an air-conditioning system, in accordance with Articles 1 and 2 of EU Commission Regulation No. 547/2012. Any pump which isn't used as a circulator, or a circulator if above 2.5kW comes under this category.
A6: 0 | B6: Z | C6: Please select a circulator to comply with J5.7(b) or another pump to comply with J5.7(c).
A8: Pump Types | B8: Reference | C8: Description
A9: -Select- | B9: Z | C9: Please select your pump type using the drop-down menu. This cell will provide a description of the pump selected.
A10: End Suction Own Bearing | B10: A | C10: An end suction water pump with own bearings. Commonly called long-coupled pumps.
A11: End Suction Close Coupled | B11: B | C11: An end suction water pump where the motor shaft is extended to also become the pump shaft. Commonly called close-coupled pumps.
A12: End Suction Close Coupled Inline | B12: C | C12: An end suction water pump where the water inlet of the pump is on the same axis as the water outlet of the pump. Commonly called inline pumps.
A13: Vertical Multistage | B13: D | C13: A glanded multi stage rotodynamic water pump in which the impellers are assembled on a vertical rotating shaft. Must be 2 Pole to comply, unless used as a circulator.
A14: Submersible Multistage | B14: E | C14: A multi stage rotodynamic water pump designed to be operated in a borehole. Must be 2 Pole to comply, unless used as a circulator.
A15: Other | B15: F | C15: A pump other than those listed. Will not comply, unless used as a circulator.
A16: 0 | B16: Z | C16: Please select your pump type using the drop-down menu. This cell will provide a description of the pump selected.
A17: Poles Options | B17: Reference
A18: -Select- | B18: Z | C18: N/A | D18: Please select your pump's speed.
A19: 2 Pole | B19: A | C19: 2900 | D19: 2900 RPM
A20: 4 Pole | B20: B | C20: 1450 | D20: 1450 RPM
A21: Other | B21: C | C21: N/A | D21: A speed other than those listed.
A22: 0 | B22: Z | C22: N/A | D22: Please select your pump's speed.
A24: C-Values for Eff min | C24: Pump Type
D25: End Suction Own Bearing | E25: End Suction Close Coupled | F25: End Suction Close Coupled Inline | G25: Vertical Multistage | H25: Submersible Multistage | I25: Other
D26: A | E26: B | F26: C | G26: D | H26: E | I26: F | J26: Z
A27: Poles | B27: 2 Pole | C27: A | D27: 130.27 | E27: 130.77 | F27: 133.69 | G27: 133.95 | H27: 128.79 | I27: N/A | J27: TBC
B28: 4 Pole | C28: B | D28: 128.07 | E28: 128.46 | F28: 132.3 | G28: N/A | H28: N/A | I28: N/A | J28: TBC
B29: Other | C29: C | D29: N/A | E29: N/A | F29: N/A | G29: N/A | H29: N/A | I29: N/A | J29: N/A
C30: Z | D30: TBC | E30: TBC | F30: TBC | G30: TBC | H30: TBC | I30: N/A | J30: TBC
A31: Pipe System Types | B31: Internal Reference | C31: Description
A32: -Select- | B32: Z | C32: Please select a non-distributive system to comply with J5.7(d)(i) or a distributive system to comply with J5.7(d)(ii).
A33: Non-distributive | B33: A | C33: A pipework system associated with an air-conditioning system which does not have branches and has the same flow rate throughout the entire pipe network. This is common in primary systems separated from the field.
A34: Distributive | B34: B | C34: Any other pipework system associated with an air-conditioning system. This is common for any system which serves multiple coils or units.
A35: 0 | B35: Z | C35: Please select a non-distributive system to comply with J5.7(d)(i) or a distributive system to comply with J5.7(d)(ii).
A37: Speed Types | B37: Internal Reference
A38: -Select- | B38: Z
A39: Constant Speed | B39: A
A40: Variable Speed | B40: B
A41: 0 | B41: Z
A43: Flow Rate Conversions
A44: (All numbers to m3/s)
A45: m³/s | B45: 1
A46: m³/hr | B46: =1/(60*60) -> 0.0002777777778
A47: L/s | B47: =1/1000 -> 0.001
A48: L/hr | B48: =1/(1000*60*60) -> 2.777777778e-07
A50: Pressure Drop Conversions
A51: (All numbers to m)
A52: kPa | B52: =B53*1000 -> 0.1019716213
A53: Pa | B53: =1/(9.80665*1000) -> 0.0001019716213
A54: bar | B54: =B52*100 -> 10.19716213
A55: mm | B55: =1/1000 -> 0.001
A56: m | B56: 1
A57: Pump Completion Return Values based on number of blank check cells
A59: Pump stage options | B59: Reference | C59: Description
A60: -Select- | B60: Z | C60: Select the pump's speed using the drop-down menu.
A61: Single Stage | B61: A | C61: Most pumps use a single stage.
A62: Multistage | B62: B | C62: Some particular pumps use multiple stages with a series of impellers.
A63: 0 | B63: Z | C63: Select the pump's speed using the drop-down menu.
A65: Methods for Pipe PD Calculation
A66: None | B66: Z
A67: Simple | B67: A
A68: Complex | B68: B
A69: 0 | B69: Z
A71: Methods for Pump Calculation
A72: None | B72: Z
A73: Simple | B73: A
A74: Alternate | B74: B
A75: 0 | B75: Z

Sheet Pipe System Lookup Values (hidden)
A1: Table of Internal Diameters
C2: Material | J2: Allowable selections
C3: Copper Type B to AS1432 | D3: Light Steel to AS1074 | E3: Medium Steel to AS1074 | F3: Heavy Steel to AS1074 | G3: PVC to AS1477 Class PN12 | H3: Custom | I3: Maximum PD | J3: =C3 -> Copper Type B to AS1432 | K3: Light Steel to AS1074 | L3: Medium Steel to AS1074 | M3: Heavy Steel to AS1074 | N3: PVC to AS1477 Class PN12
A4: Nominal Diameter | B4: 6 | C4: =6.27-0.71*2 -> 4.85 | I4: =IF(OR(ISNUMBER(SEARCH("Z",Configuration_Plus_Design)),Summary!$D$12="Z"),"",VLOOKUP(B4,INDIRECT("Table"&Summary!$C$19),HLOOKUP(Summary!$D$12,INDIRECT("Mini"&Summary!$C$19),2,TRUE),TRUE)) ->  | J4: 6 | K4: 8 | L4: 8 | M4: 8 | N4: 20
B5: 8 | C5: =7.86-2*0.71 -> 6.44 | D5: =13.2-1.8*2 -> 9.6 | E5: =13.3-2.3*2 -> 8.7 | F5: =13.3-2.9*2 -> 7.5 | I5: =IF(OR(ISNUMBER(SEARCH("Z",Configuration_Plus_Design)),Summary!$D$12="Z"),"",VLOOKUP(B5,INDIRECT("Table"&Summary!$C$19),HLOOKUP(Summary!$D$12,INDIRECT("Mini"&Summary!$C$19),2,TRUE),TRUE)) ->  | J5: 8 | K5: 10 | L5: 10 | M5: 10 | N5: 25
B6: 10 | C6: =9.44-0.91*2 -> 7.62 | D6: =16.7-1.8*2 -> 13.1 | E6: =16.8-2*2.3 -> 12.2 | F6: =16.8-2.9*2 -> 11 | I6: =IF(OR(ISNUMBER(SEARCH("Z",Configuration_Plus_Design)),Summary!$D$12="Z"),"",VLOOKUP(B6,INDIRECT("Table"&Summary!$C$19),HLOOKUP(Summary!$D$12,INDIRECT("Mini"&Summary!$C$19),2,TRUE),TRUE)) ->  | J6: 10 | K6: 15 | L6: 15 | M6: 15 | N6: 32
B7: 15 | C7: =12.62-0.91*2 -> 10.8 | D7: =21-2*2 -> 17 | E7: =21.1-2.6*2 -> 15.9 | F7: =21.1-3.2*2 -> 14.7 | I7: =IF(OR(ISNUMBER(SEARCH("Z",Configuration_Plus_Design)),Summary!$D$12="Z"),"",VLOOKUP(B7,INDIRECT("Table"&Summary!$C$19),HLOOKUP(Summary!$D$12,INDIRECT("Mini"&Summary!$C$19),2,TRUE),TRUE)) ->  | J7: 15 | K7: 20 | L7: 20 | M7: 20 | N7: 40
B8: 18 | C8: =15.8-1.02*2 -> 13.76 | I8: =IF(OR(ISNUMBER(SEARCH("Z",Configuration_Plus_Design)),Summary!$D$12="Z"),"",VLOOKUP(B8,INDIRECT("Table"&Summary!$C$19),HLOOKUP(Summary!$D$12,INDIRECT("Mini"&Summary!$C$19),2,TRUE),TRUE)) ->  | J8: 18 | K8: 25 | L8: 25 | M8: 25 | N8: 50
B9: 20 | C9: =18.97-1.02*2 -> 16.93 | D9: =26.4-2.3*2 -> 21.8 | E9: =26.6-2.6*2 -> 21.4 | F9: =26.6-3.2*2 -> 20.2 | G9: =26.6-1.7*2 -> 23.2 | I9: =IF(OR(ISNUMBER(SEARCH("Z",Configuration_Plus_Design)),Summary!$D$12="Z"),"",VLOOKUP(B9,INDIRECT("Table"&Summary!$C$19),HLOOKUP(Summary!$D$12,INDIRECT("Mini"&Summary!$C$19),2,TRUE),TRUE)) ->  | J9: 20 | K9: 32 | L9: 32 | M9: 32 | N9: 65
B10: 25 | C10: =25.3-1.22*2 -> 22.86 | D10: =33.2-2.6*2 -> 28 | E10: =33.4-3.2*2 -> 27 | F10: =33.4-4*2 -> 25.4 | G10: =33.4-2.1*2 -> 29.2 | I10: =IF(OR(ISNUMBER(SEARCH("Z",Configuration_Plus_Design)),Summary!$D$12="Z"),"",VLOOKUP(B10,INDIRECT("Table"&Summary!$C$19),HLOOKUP(Summary!$D$12,INDIRECT("Mini"&Summary!$C$19),2,TRUE),TRUE)) ->  | J10: 25 | K10: 40 | L10: 40 | M10: 40 | N10: 80
B11: 32 | C11: =31.65-1.22*2 -> 29.21 | D11: =41.9-2.6*2 -> 36.7 | E11: =42.1-3.2*2 -> 35.7 | F11: =42.1-4*2 -> 34.1 | G11: =42.1-2.6*2 -> 36.9 | I11: =IF(OR(ISNUMBER(SEARCH("Z",Configuration_Plus_Design)),Summary!$D$12="Z"),"",VLOOKUP(B11,INDIRECT("Table"&Summary!$C$19),HLOOKUP(Summary!$D$12,INDIRECT("Mini"&Summary!$C$19),2,TRUE),TRUE)) ->  | J11: 32 | K11: 50 | L11: 50 | M11: 50 | N11: 100
B12: 40 | C12: =38-1.22*2 -> 35.56 | D12: =47.8-2.9*2 -> 42 | E12: =48-3.2*2 -> 41.6 | F12: =48-4*2 -> 40 | G12: =48.1-3*2 -> 42.1 | I12: =IF(OR(ISNUMBER(SEARCH("Z",Configuration_Plus_Design)),Summary!$D$12="Z"),"",VLOOKUP(B12,INDIRECT("Table"&Summary!$C$19),HLOOKUP(Summary!$D$12,INDIRECT("Mini"&Summary!$C$19),2,TRUE),TRUE)) ->  | J12: 40 | K12: 65 | L12: 65 | M12: 65 | N12: 125
B13: 50 | C13: =50.67-2*1.22 -> 48.23 | D13: =59.6-2.9*2 -> 53.8 | E13: =59.8-3.6*2 -> 52.6 | F13: =59.8-4.5*2 -> 50.8 | G13: =60.2-3.6*2 -> 53 | I13: =IF(OR(ISNUMBER(SEARCH("Z",Configuration_Plus_Design)),Summary!$D$12="Z"),"",VLOOKUP(B13,INDIRECT("Table"&Summary!$C$19),HLOOKUP(Summary!$D$12,INDIRECT("Mini"&Summary!$C$19),2,TRUE),TRUE)) ->  | J13: 50 | K13: 80 | L13: 80 | M13: 80 | N13: 150
B14: 65 | C14: =63.35-1.22*2 -> 60.91 | D14: =75.2-3.2*2 -> 68.8 | E14: =75.4-3.6*2 -> 68.2 | F14: =75.4-4.5*2 -> 66.4 | G14: =75.2-4.5*2 -> 66.2 | I14: =IF(OR(ISNUMBER(SEARCH("Z",Configuration_Plus_Design)),Summary!$D$12="Z"),"",VLOOKUP(B14,INDIRECT("Table"&Summary!$C$19),HLOOKUP(Summary!$D$12,INDIRECT("Mini"&Summary!$C$19),2,TRUE),TRUE)) ->  | J14: 65 | K14: 100 | L14: 100 | M14: 100 | N14: 200
B15: 80 | C15: =76.02-1.63*2 -> 72.76 | D15: =87.9-3.2*2 -> 81.5 | E15: =88.1-4*2 -> 80.1 | F15: =88.1-5*2 -> 78.1 | G15: =88.7-5.3*2 -> 78.1 | I15: =IF(OR(ISNUMBER(SEARCH("Z",Configuration_Plus_Design)),Summary!$D$12="Z"),"",VLOOKUP(B15,INDIRECT("Table"&Summary!$C$19),HLOOKUP(Summary!$D$12,INDIRECT("Mini"&Summary!$C$19),2,TRUE),TRUE)) ->  | J15: 80 | L15: 125 | M15: 125
B16: 90 | C16: =88.7-1.63*2 -> 85.44 | I16: =IF(OR(ISNUMBER(SEARCH("Z",Configuration_Plus_Design)),Summary!$D$12="Z"),"",VLOOKUP(B16,INDIRECT("Table"&Summary!$C$19),HLOOKUP(Summary!$D$12,INDIRECT("Mini"&Summary!$C$19),2,TRUE),TRUE)) ->  | J16: 90 | L16: 150 | M16: 150
B17: 100 | C17: =101.35-2*1.63 -> 98.09 | D17: =113-3.6*2 -> 105.8 | E17: =113.3-4.5*2 -> 104.3 | F17: =113.3-5.4*2 -> 102.5 | G17: =114.1-6.7*2 -> 100.7 | I17: =IF(OR(ISNUMBER(SEARCH("Z",Configuration_Plus_Design)),Summary!$D$12="Z"),"",VLOOKUP(B17,INDIRECT("Table"&Summary!$C$19),HLOOKUP(Summary!$D$12,INDIRECT("Mini"&Summary!$C$19),2,TRUE),TRUE)) ->  | J17: 100
B18: 125 | C18: =126.75-2*1.63 -> 123.49 | E18: =138.7-5*2 -> 128.7 | F18: =138.7-5.4*2 -> 127.9 | G18: =140-8.1*2 -> 123.8 | I18: =IF(OR(ISNUMBER(SEARCH("Z",Configuration_Plus_Design)),Summary!$D$12="Z"),"",VLOOKUP(B18,INDIRECT("Table"&Summary!$C$19),HLOOKUP(Summary!$D$12,INDIRECT("Mini"&Summary!$C$19),2,TRUE),TRUE)) ->  | J18: 125
B19: 150 | C19: =152.1-2.03*2 -> 148.04 | E19: =164.1-5*2 -> 154.1 | F19: =164.1-5.4*2 -> 153.3 | G19: =160-9.3*2 -> 141.4 | I19: =IF(OR(ISNUMBER(SEARCH("Z",Configuration_Plus_Design)),Summary!$D$12="Z"),"",VLOOKUP(B19,INDIRECT("Table"&Summary!$C$19),HLOOKUP(Summary!$D$12,INDIRECT("Mini"&Summary!$C$19),2,TRUE),TRUE)) ->  | J19: 150
B20: 200 | C20: =202.8-2.03*2 -> 198.74 | G20: =225-11.7*2 -> 201.6 | I20: =IF(OR(ISNUMBER(SEARCH("Z",Configuration_Plus_Design)),Summary!$D$12="Z"),"",VLOOKUP(B20,INDIRECT("Table"&Summary!$C$19),HLOOKUP(Summary!$D$12,INDIRECT("Mini"&Summary!$C$19),2,TRUE),TRUE)) ->  | J20: 200
B21: End
A24: Maximum Pressure Drops
A26: Table J5.7B - Constant Speed, No Branches | F26: Table J5.7D - Constant Speed, Distributive
A27: Minimum Diameter | B27: A | C27: B | D27: C | E27: Z | F27: Minimum Diameter | G27: A | H27: B | I27: C | J27: Z
A28: 1 | B28: 2 | C28: 3 | D28: 4 | E28: 5 | F28: 1 | G28: 2 | H28: 3 | I28: 4 | J28: 5
A30: AA | B30: Minimum Hours | F30: BA | G30: Minimum Hours
B31: 2000 or Less | C31: Between 2000 and 5000 | D31: More than 5000 | E31: Z | G31: 2000 or Less | H31: Between 2000 and 5000 | I31: More than 5000 | J31: Z
A32: 0 | B32: 400 | C32: 400 | D32: 400 | F32: 0 | G32: 400 | H32: 300 | I32: 150
A33: 25 | B33: 400 | C33: 400 | D33: 400 | F33: 25 | G33: 400 | H33: 220 | I33: 100
A34: 32 | B34: 400 | C34: 400 | D34: 400 | F34: 32 | G34: 400 | H34: 220 | I34: 100
A35: 40 | B35: 400 | C35: 400 | D35: 400 | F35: 40 | G35: 400 | H35: 220 | I35: 100
A36: 50 | B36: 400 | C36: 400 | D36: 350 | F36: 50 | G36: 400 | H36: 220 | I36: 100
A37: 65 | B37: 400 | C37: 400 | D37: 350 | F37: 65 | G37: 400 | H37: 400 | I37: 170
A38: 80 | B38: 400 | C38: 400 | D38: 350 | F38: 80 | G38: 400 | H38: 400 | I38: 170
A39: 100 | B39: 400 | C39: 400 | D39: 200 | F39: 100 | G39: 400 | H39: 400 | I39: 170
A40: 125 | B40: 400 | C40: 400 | D40: 200 | F40: 125 | G40: 400 | H40: 400 | I40: 170
A41: 150 | B41: 400 | C41: 400 | D41: 200 | F41: 150 | G41: 400 | H41: 400 | I41: 170
A43: Table J5.7C - Variable Speed, No Branches | F43: Table J5.7E - Variable Speed, Distributive
A44: Minimum Diameter | B44: A | C44: B | D44: C | E44: Z | F44: Minimum Diameter | G44: A | H44: B | I44: C | J44: Z
A45: 1 | B45: 2 | C45: 3 | D45: 4 | E45: 5 | F45: 1 | G45: 2 | H45: 3 | I45: 4 | J45: 5
A47: AB | B47: Minimum Hours | F47: BB | G47: Minimum Hours
B48: 2000 or Less | C48: Between 2000 and 5000 | D48: More than 5000 | E48: Z | G48: 2000 or Less | H48: Between 2000 and 5000 | I48: More than 5000 | J48: Z
A49: 0 | B49: 400 | C49: 400 | D49: 400 | F49: 0 | G49: 400 | H49: 400 | I49: 250
A50: 25 | B50: 400 | C50: 400 | D50: 400 | F50: 25 | G50: 400 | H50: 400 | I50: 180
A51: 32 | B51: 400 | C51: 400 | D51: 400 | F51: 32 | G51: 400 | H51: 400 | I51: 180
A52: 40 | B52: 400 | C52: 400 | D52: 400 | F52: 40 | G52: 400 | H52: 400 | I52: 180
A53: 50 | B53: 400 | C53: 400 | D53: 400 | F53: 50 | G53: 400 | H53: 400 | I53: 180
A54: 65 | B54: 400 | C54: 400 | D54: 400 | F54: 65 | G54: 400 | H54: 400 | I54: 300
A55: 80 | B55: 400 | C55: 400 | D55: 400 | F55: 80 | G55: 400 | H55: 400 | I55: 300
A56: 100 | B56: 400 | C56: 400 | D56: 300 | F56: 100 | G56: 400 | H56: 400 | I56: 300
A57: 125 | B57: 400 | C57: 400 | D57: 300 | F57: 125 | G57: 400 | H57: 400 | I57: 300
A58: 150 | B58: 400 | C58: 400 | D58: 300 | F58: 150 | G58: 400 | H58: 400 | I58: 300
A60: Selection Lookup Table
A61: Selection | B61: Tag | C61: Column Number
A62: -Select- | B62: Z | C62: 5
A63: 2000 or Less | B63: A | C63: 2
A64: Between 2000 and 5000 | B64: B | C64: 3
A65: More than 5000 | B65: C | C65: 4
A66: 0 | B66: Z | C66: 5

Sheet Water Properties (hidden)
A1: Temperature | B1: Dynamic Viscosity | C1: Density
A2: 0.01 | B2: 1.782 | C2: 999.8
A3: 1 | B3: 1.724 | C3: 999.8
A4: 2 | B4: 1.699 | C4: 999.9
A5: 3 | B5: 1.616 | C5: 999.9
A6: 4 | B6: 1.565 | C6: 999.9
A7: 5 | B7: 1.517 | C7: 999.9
A8: 6 | B8: 1.471 | C8: 999.9
A9: 7 | B9: 1.427 | C9: 999.9
A10: 8 | B10: 1.385 | C10: 999.8
A11: 9 | B11: 1.334 | C11: 999.7
A12: 10 | B12: 1.306 | C12: 999.7
A13: 11 | B13: 1.269 | C13: 999.6
A14: 12 | B14: 1.234 | C14: 999.4
A15: 13 | B15: 1.201 | C15: 999.3
A16: 14 | B16: 1.169 | C16: 999.2
A17: 15 | B17: 1.138 | C17: 999
A18: 16 | B18: 1.108 | C18: 998.9
A19: 17 | B19: 1.08 | C19: 998.7
A20: 18 | B20: 1.053 | C20: 998.6
A21: 19 | B21: 1.027 | C21: 998.4
A22: 20 | B22: 1.002 | C22: 998.2
A23: 21 | B23: 0.978 | C23: 997.9
A24: 22 | B24: 0.955 | C24: 997.7
A25: 23 | B25: 0.932 | C25: 997.5
A26: 24 | B26: 0.911 | C26: 997.2
A27: 25 | B27: 0.89 | C27: 997
A28: 26 | B28: 0.87 | C28: 996.7
A29: 27 | B29: 0.851 | C29: 996.5
A30: 28 | B30: 0.833 | C30: 996.2
A31: 29 | B31: 0.815 | C31: 995.9
A32: 30 | B32: 0.798 | C32: 995.6
A33: 31 | B33: 0.781 | C33: 995.3
A34: 32 | B34: 0.765 | C34: 995
A35: 33 | B35: 0.749 | C35: 994.6
A36: 34 | B36: 0.734 | C36: 994.3
A37: 35 | B37: 0.719 | C37: 994
A38: 36 | B38: 0.705 | C38: 993.6
A39: 37 | B39: 0.692 | C39: 993.3
A40: 38 | B40: 0.678 | C40: 993
A41: 39 | B41: 0.666 | C41: 992.6
A42: 40 | B42: 0.653 | C42: 992.2
A43: 41 | B43: 0.641 | C43: 991.8
A44: =A43+1 -> 42 | B44: 0.629 | C44: 991.4
A45: =A44+1 -> 43 | B45: 0.618 | C45: 991
A46: 44 | B46: 0.606 | C46: 990.6
A47: 45 | B47: 0.596 | C47: 990.2
A48: 46 | B48: 0.586 | C48: 989.8
A49: 47 | B49: 0.576 | C49: 989.3
A50: 48 | B50: 0.566 | C50: 988.9
A51: 49 | B51: 0.556 | C51: 988.5
A52: 50 | B52: 0.547 | C52: 988
A53: 51 | B53: 0.538 | C53: 987.6
A54: 52 | B54: 0.529 | C54: 987.2
A55: 53 | B55: 0.521 | C55: 986.7
A56: 54 | B56: 0.512 | C56: 986.2
A57: 55 | B57: 0.504 | C57: 985.7
A58: 56 | B58: 0.496 | C58: 985.2
A59: 57 | B59: 0.489 | C59: 984.7
A60: 58 | B60: 0.481 | C60: 984.3
A61: 59 | B61: 0.474 | C61: 983.7
A62: 60 | B62: 0.467 | C62: 983.2
A63: 61 | B63: 0.46 | C63: 982.7
A64: 62 | B64: 0.453 | C64: 982.1
A65: 63 | B65: 0.447 | C65: 981.6
A66: 64 | B66: 0.44 | C66: 981.1
A67: 65 | B67: 0.434 | C67: 980.5
A68: 66 | B68: 0.428 | C68: 979.9
A69: 67 | B69: 0.422 | C69: 979.4
A70: 68 | B70: 0.416 | C70: 978.9
A71: 69 | B71: 0.41 | C71: 978.3
A72: 70 | B72: 0.404 | C72: 977.7
A73: 71 | B73: 0.399 | C73: 977.1
A74: 72 | B74: 0.394 | C74: 976.6
A75: 73 | B75: 0.388 | C75: 976
A76: 74 | B76: 0.383 | C76: 975.4
A77: 75 | B77: 0.378 | C77: 974.9
A78: 76 | B78: 0.373 | C78: 974.3
A79: 77 | B79: 0.369 | C79: 973.6
A80: 78 | B80: 0.364 | C80: 973.1
A81: 79 | B81: 0.359 | C81: 972.5
A82: 80 | B82: 0.355 | C82: 971.8
A83: 81 | B83: 0.35 | C83: 971.2
A84: =A83+1 -> 82 | B84: 0.346 | C84: 970.6
A85: =A84+1 -> 83 | B85: 0.342 | C85: 969.9
A86: 84 | B86: 0.338 | C86: 969.3
A87: 85 | B87: 0.334 | C87: 968.6
A88: 86 | B88: 0.33 | C88: 968
A89: 87 | B89: 0.326 | C89: 967.3
A90: 88 | B90: 0.322 | C90: 966.7
A91: 89 | B91: 0.318 | C91: 966
A92: 90 | B92: 0.314 | C92: 965.3
A93: 91 | B93: 0.311 | C93: 964.7
A94: 92 | B94: 0.307 | C94: 964
A95: 93 | B95: 0.304 | C95: 963.3
A96: 94 | B96: 0.3 | C96: 962.7
A97: 95 | B97: 0.297 | C97: 961.9
A98: =A97+1 -> 96 | B98: 0.294 | C98: 961.2
A99: 97 | B99: 0.291 | C99: 960.5
A100: 98 | B100: 0.287 | C100: 959.8
A101: 99 | B101: 0.284 | C101: 959.1
A102: 100 | B102: 0.281 | C102: 958.3

Sheet Worksheet (hidden)
A1: User's worksheet:
A2: This worksheet has been added for recording notes and making calculations (where desired).
A3: To maintain the integrity of the Calculator, this sheet is protected, which may cause some unavoidable restrictions on the functions available.
A4: All cells below row 5 are accessible for user input, editing and formatting, subject to the limitations due to protection.
A5: Use of this worksheet and responsibility for its contents and consequences remains entirely with the user.
